Workbook

Sheet 2016
A2: Capitol bugetar / Sursă de finanţare | B2: Nume | C2: Prenume | D2: CNP | E2: ian | F2: feb | G2: mar | H2: apr | I2: mai | J2: iun | K2: iul | L2: aug | M2: sep | N2: oct | O2: noi | P2: dec | Q2: ipc | R2: brut cu ipc | S2: IPC | T2: Dobânda totală diferențe 2016
B3: Data start calcul dobândă | R3: 2017-01-01
B4: BELDEAN | C4: PAUL | D4: 1760425310761 | E4: 0 | F4: 0 | G4: 0 | H4: 0 | I4: 0 | J4: 0 | K4: 0 | L4: 0 | M4: 0 | N4: 0 | O4: 0 | P4: 0 | Q4: 175.35 | R4: =P4*Q4/100 -> 0 | T4: =dobandaLegala(R3,C29,R4) -> 0
B5: BUFTEA | C5: IZABELLA | D5: 2790919191322 | E5: 0 | F5: 0 | G5: 0 | H5: 0 | I5: 0 | J5: 0 | K5: 0 | L5: 0 | M5: 0 | N5: 0 | O5: 0 | P5: 12 | Q5: =Q4 -> 175.35 | R5: =P5*Q5/100 -> 21.042 | T5: =dobandaLegala(R3,C29,R5) -> 10.52649542
B6: CAMPEAN | C6: ANCA | D6: 2680927120704 | E6: 0 | F6: 0 | G6: 0 | H6: 0 | I6: 0 | J6: 0 | K6: 0 | L6: 0 | M6: 0 | N6: 0 | O6: 0 | P6: 896 | Q6: =Q4 -> 175.35 | R6: =P6*Q6/100 -> 1571.136 | T6: =dobandaLegala(R3,C29,R6) -> 785.9783248
B7: CRISTU | C7: GRETI | D7: 2630326120671 | E7: 0 | F7: 0 | G7: 0 | H7: 0 | I7: 0 | J7: 0 | K7: 0 | L7: 0 | M7: 0 | N7: 0 | O7: 0 | P7: 668 | Q7: =Q4 -> 175.35 | R7: 1171.338 | T7: =dobandaLegala(R3,C29,R7) -> 585.9749118
B8: DASCALU | C8: DUMITRITA | D8: 2791229312975 | E8: 0 | F8: 0 | G8: 0 | H8: 0 | I8: 0 | J8: 0 | K8: 0 | L8: 0 | M8: 0 | N8: 0 | O8: 0 | P8: 0 | Q8: =Q4 -> 175.35 | R8: 0 | T8: =dobandaLegala(R3,C29,R8) -> 0
B9: DRUS | C9: ELISABETA | D9: 2761209123136 | E9: 0 | F9: 0 | G9: 0 | H9: 0 | I9: 0 | J9: 0 | K9: 0 | L9: 0 | M9: 0 | N9: 0 | O9: 0 | P9: 638 | Q9: =Q4 -> 175.35 | R9: 1118.733 | T9: =dobandaLegala(R3,C29,R9) -> 559.6586732
B10: DURA | C10: NICOLAE | D10: 1751123012539 | E10: 0 | F10: 0 | G10: 0 | H10: 0 | I10: 0 | J10: 0 | K10: 0 | L10: 0 | M10: 0 | N10: 0 | O10: 0 | P10: 638 | Q10: =Q4 -> 175.35 | R10: 1118.733 | T10: =dobandaLegala(R3,C29,R10) -> 559.6586732
B11: DUMITRAS | C11: CORNELIA | D11: 2860626060592 | E11: 0 | F11: 0 | G11: 0 | H11: 0 | I11: 0 | J11: 0 | K11: 0 | L11: 0 | M11: 0 | N11: 0 | O11: 0 | P11: 0 | Q11: =Q4 -> 175.35 | R11: 0 | T11: =dobandaLegala(R3,C29,R11) -> 0
B12: GALMATI | C12: RODICA | D12: 2620908120010 | E12: 0 | F12: 0 | G12: 0 | H12: 0 | I12: 0 | J12: 0 | K12: 0 | L12: 0 | M12: 0 | N12: 0 | O12: 0 | P12: 668 | Q12: =Q4 -> 175.35 | R12: 1171.338 | T12: =dobandaLegala(R3,C29,R12) -> 585.9749118
B13: ISCRU | C13: GABRIELA | D13: 2850608125788 | E13: 0 | F13: 0 | G13: 0 | H13: 0 | I13: 0 | J13: 0 | K13: 0 | L13: 0 | M13: 0 | N13: 0 | O13: 0 | P13: 12 | Q13: =Q4 -> 175.35 | R13: 21.042 | T13: =dobandaLegala(R3,C29,R13) -> 10.52649542
B14: MALSCHI FLORIAN | C14: BIANCA | D14: 2800328311458 | E14: 0 | F14: 0 | G14: 0 | H14: 0 | I14: 0 | J14: 0 | K14: 0 | L14: 0 | M14: 0 | N14: 0 | O14: 0 | P14: 624 | Q14: =Q4 -> 175.35 | R14: 1094.184 | T14: =dobandaLegala(R3,C29,R14) -> 547.3777619
B15: MURESIANU MELEAN | C15: AURELIA | D15: 2821021063371 | E15: 0 | F15: 0 | G15: 0 | H15: 0 | I15: 0 | J15: 0 | K15: 0 | L15: 0 | M15: 0 | N15: 0 | O15: 0 | P15: 2 | Q15: =Q4 -> 175.35 | R15: 3.507 | T15: =dobandaLegala(R3,C29,R15) -> 1.754415903
B16: POP | C16: IOANA | D16: 2590712120697 | E16: 0 | F16: 0 | G16: 0 | H16: 0 | I16: 0 | J16: 0 | K16: 0 | L16: 0 | M16: 0 | N16: 0 | O16: 0 | P16: 668 | Q16: =Q4 -> 175.35 | R16: 1171.338 | T16: =dobandaLegala(R3,C29,R16) -> 585.9749118
B17: RUSU | C17: IOANA | D17: 2781212060787 | E17: 0 | F17: 0 | G17: 0 | H17: 0 | I17: 0 | J17: 0 | K17: 0 | L17: 0 | M17: 0 | N17: 0 | O17: 0 | P17: 0 | Q17: =Q4 -> 175.35 | R17: 0 | T17: =dobandaLegala(R3,C29,R17) -> 0
B18: SAVAN | C18: GABRIELA | D18: 2680224123132 | E18: 0 | F18: 0 | G18: 0 | H18: 0 | I18: 0 | J18: 0 | K18: 0 | L18: 0 | M18: 0 | N18: 0 | O18: 0 | P18: 0 | Q18: =Q4 -> 175.35 | R18: 0 | T18: =dobandaLegala(R3,C29,R18) -> 0
B19: SZABO | C19: DANIELA | D19: 2650822120702 | E19: 0 | F19: 0 | G19: 0 | H19: 0 | I19: 0 | J19: 0 | K19: 0 | L19: 0 | M19: 0 | N19: 0 | O19: 0 | P19: 0 | Q19: =Q4 -> 175.35 | R19: 0 | T19: =dobandaLegala(R3,C29,R19) -> 0
B20: SABAU | C20: CORINA | D20: 2810906125799 | E20: 0 | F20: 0 | G20: 0 | H20: 0 | I20: 0 | J20: 0 | K20: 0 | L20: 0 | M20: 0 | N20: 0 | O20: 0 | P20: 531 | Q20: =Q4 -> 175.35 | R20: 931.1085 | T20: =dobandaLegala(R3,C29,R20) -> 465.7974224
B21: SOCACIU | C21: ADINA | D21: 2700613311250 | E21: 0 | F21: 0 | G21: 0 | H21: 0 | I21: 0 | J21: 0 | K21: 0 | L21: 0 | M21: 0 | N21: 0 | O21: 0 | P21: 896 | Q21: =Q4 -> 175.35 | R21: 1571.136 | T21: =dobandaLegala(R3,C29,R21) -> 785.9783248
B22: SONIA | C22: ALINA | D22: 2850601124242 | E22: 0 | F22: 0 | G22: 0 | H22: 0 | I22: 0 | J22: 0 | K22: 0 | L22: 0 | M22: 0 | N22: 0 | O22: 0 | P22: 12 | Q22: =Q4 -> 175.35 | R22: 21.042 | T22: =dobandaLegala(R3,C29,R22) -> 10.52649542
B23: STANCA | C23: LIGIA | D23: 2790505126207 | E23: 0 | F23: 0 | G23: 0 | H23: 0 | I23: 0 | J23: 0 | K23: 0 | L23: 0 | M23: 0 | N23: 0 | O23: 0 | P23: 12 | Q23: =Q4 -> 175.35 | R23: 21.042 | T23: =dobandaLegala(R3,C29,R23) -> 10.52649542
B24: TINTELECAN | C24: ROMINA | D24: 2870519125471 | E24: 0 | F24: 0 | G24: 0 | H24: 0 | I24: 0 | J24: 0 | K24: 0 | L24: 0 | M24: 0 | N24: 0 | O24: 0 | P24: 0 | Q24: =Q4 -> 175.35 | R24: 0 | T24: =dobandaLegala(R3,C29,R24) -> 0
B25: ULIESAN | C25: DUMITRU | D25: 1600909120701 | E25: 0 | F25: 0 | G25: 0 | H25: 0 | I25: 0 | J25: 0 | K25: 0 | L25: 0 | M25: 0 | N25: 0 | O25: 0 | P25: 668 | Q25: =Q4 -> 175.35 | R25: 1171.338 | T25: =dobandaLegala(R3,C29,R25) -> 585.9749118
B26: VERMESAN | C26: ALEXANDRA | D26: 2610301125176 | E26: 0 | F26: 0 | G26: 0 | H26: 0 | I26: 0 | J26: 0 | K26: 0 | L26: 0 | M26: 0 | N26: 0 | O26: 0 | P26: 668 | Q26: =Q4 -> 175.35 | R26: 1171.338 | T26: =dobandaLegala(R3,C29,R26) -> 585.9749118
P27: =SUM(P4:P26) -> 7613 | R27: =SUM(R4:R26) -> 13349.3955 | S27: =R27-P27 -> 5736.3955 | T27: =SUM(T4:T26) -> 6678.184137
B29: Data stop dobândă variabilă | C29: 2024-04-30
B30: Data stop inflație principal | C30: 2026-01-01

Sheet 2017
A2: Capitol bugetar / Sursă de finanţare | B2: Categorie personal | C2: Nume | D2: Prenume | E2: CNP | F2: ian | G2: ipc | H2: brut cu ipc | I2: Dobânda | J2: feb | K2: ipc | L2: brut cu ipc | M2: Dobânda | N2: mar | O2: ipc | P2: brut cu ipc | Q2: Dobânda | R2: apr | S2: ipc | T2: brut cu ipc | U2: Dobânda | V2: mai | W2: ipc | X2: brut cu ipc | Y2: Dobânda | Z2: iun | AA2: ipc | AB2: brut cu ipc | AC2: Dobânda | AD2: iul | AE2: ipc | AF2: brut cu ipc | AG2: Dobânda | AH2: aug | AI2: ipc | AJ2: brut cu ipc | AK2: Dobânda | AL2: sep | AM2: ipc | AN2: brut cu ipc | AO2: Dobânda | AP2: oct | AQ2: ipc | AR2: brut cu ipc | AS2: Dobânda | AT2: noi | AU2: ipc | AV2: brut cu ipc | AW2: Dobânda | AX2: dec | AY2: ipc | AZ2: brut cu ipc | BA2: Dobânda | BB2: TOTAL BRUT 2017 | BC2: total 2017 CU IPC | BD2: IPC 2017 | BE2: TOTAL DOBANDA
B3: Data start calcul dobândă | H3: 2017-02-01 | L3: 2017-03-01 | P3: 2017-04-01 | T3: 2017-05-01 | X3: 2017-06-01 | AB3: 2017-07-01 | AF3: 2017-08-01 | AJ3: 2017-09-01 | AN3: 2017-10-01 | AR3: 2017-11-01 | AV3: 2017-12-01 | AZ3: 2018-01-01
C4: BELDEAN | D4: PAUL | E4: 1760425310761 | F4: 0 | G4: 175.68 | H4: =F4*G4/100 -> 0 | I4: =dobandaLegala(H3,C30,H4) -> 0 | J4: 0 | K4: 175.84 | L4: =J4*K4/100 -> 0 | M4: =dobandaLegala(L3,C30,L4) -> 0 | N4: 0 | O4: 175.69 | P4: =N4*O4/100 -> 0 | Q4: =dobandaLegala(P3,C30,P4) -> 0 | R4: 0 | S4: 175.21 | T4: =R4*S4/100 -> 0 | U4: =dobandaLegala(T3,C30,T4) -> 0 | V4: 0 | W4: 174.71 | X4: =V4*W4/100 -> 0 | Y4: =dobandaLegala(X3,C30,X4) -> 0 | Z4: 0 | AA4: 174.65 | AB4: =Z4*AA4/100 -> 0 | AC4: =dobandaLegala(AB3,C30,AB4) -> 0 | AD4: 567.1904762 | AE4: 174.1 | AF4: =AD4*AE4/100 -> 987.478619 | AG4: =dobandaLegala(AF3,C30,AF4) -> 461.0181233 | AH4: 1917.136364 | AI4: 174.44 | AJ4: =AH4*AI4/100 -> 3344.252673 | AK4: =dobandaLegala(AJ3,C30,AJ4) -> 1544.978995 | AL4: 1990.261905 | AM4: 173.57 | AN4: =AL4*AM4/100 -> 3454.497588 | AO4: =dobandaLegala(AN3,C30,AN4) -> 1579.583929 | AP4: 1979.772727 | AQ4: 171.38 | AR4: =AP4*AQ4/100 -> 3392.9345 | AS4: =dobandaLegala(AR3,C30,AR4) -> 1534.864336 | AT4: 2015 | AU4: 175.26 | AV4: =AT4*AU4/100 -> 3531.489 | AW4: =dobandaLegala(AV3,C30,AV4) -> 1580.852426 | AX4: 1934.75 | AY4: 169.72 | AZ4: =AX4*AY4/100 -> 3283.6577 | BA4: =dobandaLegala(AZ3,C30,AZ4) -> 1453.876107 | BB4: =AX4+AT4+AP4+AL4+AH4+AD4+Z4+V4+R4+N4+J4+F4 -> 10404.11147 | BC4: =AZ4+AV4+AR4+AN4+AJ4+AF4+AB4+X4+T4+P4+L4+H4 -> 17994.31008 | BD4: =BC4-BB4 -> 7590.198608 | BE4: =I4+M4+Q4+U4+Y4+AC4+AG4+AK4+AO4+AS4+AW4+BA4 -> 8155.173916
C5: BUFTEA | D5: IZABELLA | E5: 2790919191322 | F5: 39 | G5: =G4 -> 175.68 | H5: 68.5152 | I5: =dobandaLegala(H3,C30,H5) -> 33.94089553 | J5: 38.6 | K5: =K4 -> 175.84 | L5: =J5*K5/100 -> 67.87424 | M5: =dobandaLegala(L3,C30,L5) -> 33.32398782 | N5: 39.26086957 | O5: =O4 -> 175.69 | P5: =N5*O5/100 -> 68.97742174 | Q5: =dobandaLegala(P3,C30,P5) -> 33.52875776 | R5: 39.42105263 | S5: =S4 -> 175.21 | T5: =R5*S5/100 -> 69.06962632 | U5: =dobandaLegala(T3,C30,T5) -> 33.2471519 | V5: 39.36363636 | W5: =W4 -> 174.71 | X5: =V5*W5/100 -> 68.77220909 | Y5: =dobandaLegala(X3,C30,X5) -> 32.7681347 | Z5: 385.75 | AA5: =AA4 -> 174.65 | AB5: =Z5*AA5/100 -> 673.712375 | AC5: =dobandaLegala(AB3,C30,AB5) -> 317.8221056 | AD5: 378.2857143 | AE5: =AE4 -> 174.1 | AF5: =AD5*AE5/100 -> 658.5954286 | AG5: =dobandaLegala(AF3,C30,AF5) -> 307.474433 | AH5: 387.0852273 | AI5: =AI4 -> 174.44 | AJ5: =AH5*AI5/100 -> 675.2314705 | AK5: =dobandaLegala(AJ3,C30,AJ5) -> 311.943666 | AL5: 383.7857143 | AM5: =AM4 -> 173.57 | AN5: =AL5*AM5/100 -> 666.1368643 | AO5: =dobandaLegala(AN3,C30,AN5) -> 304.5939556 | AP5: 385.2727273 | AQ5: =AQ4 -> 171.38 | AR5: =AP5*AQ5/100 -> 660.2804 | AS5: =dobandaLegala(AR3,C30,AR5) -> 298.691542 | AT5: 381.4285714 | AU5: =AU4 -> 175.26 | AV5: =AT5*AU5/100 -> 668.4917143 | AW5: =dobandaLegala(AV3,C30,AV5) -> 299.2467903 | AX5: 384.8125 | AY5: =AY4 -> 169.72 | AZ5: =AX5*AY5/100 -> 653.103775 | BA5: =dobandaLegala(AZ3,C30,AZ5) -> 289.1689879 | BB5: 2882.066013 | BC5: 4998.760725 | BD5: =BC5-BB5 -> 2116.694712 | BE5: =I5+M5+Q5+U5+Y5+AC5+AG5+AK5+AO5+AS5+AW5+BA5 -> 2295.750408
C6: CAMPEAN | D6: ANCA | E6: 2680927120704 | F6: 2987 | G6: =G4 -> 175.68 | H6: 5247.5616 | I6: =dobandaLegala(H3,C30,H6) -> 2599.524486 | J6: 2987 | K6: =K4 -> 175.84 | L6: 5252.3408 | M6: =dobandaLegala(L3,C30,L6) -> 2578.724135 | N6: 2987.173913 | O6: =O4 -> 175.69 | P6: 5248.165848 | Q6: =dobandaLegala(P3,C30,P6) -> 2551.044631 | R6: 2987.190789 | S6: =S4 -> 175.21 | T6: 5233.856982 | U6: =dobandaLegala(T3,C30,T6) -> 2519.353982 | V6: 2987 | W6: =W4 -> 174.71 | X6: 5218.5877 | Y6: =dobandaLegala(X3,C30,X6) -> 2486.518711 | Z6: 2678.5 | AA6: =AA4 -> 174.65 | AB6: 4678.00025 | AC6: =dobandaLegala(AB3,C30,AB6) -> 2206.834763 | AD6: 2728.761905 | AE6: =AE4 -> 174.1 | AF6: 4750.774476 | AG6: =dobandaLegala(AF3,C30,AF6) -> 2217.965119 | AH6: 2661.909091 | AI6: =AI4 -> 174.44 | AJ6: 4643.434218 | AK6: =dobandaLegala(AJ3,C30,AJ6) -> 2145.17533 | AL6: 2646.095238 | AM6: =AM4 -> 173.57 | AN6: 4592.827505 | AO6: =dobandaLegala(AN3,C30,AN6) -> 2100.090195 | AP6: 2703.886364 | AQ6: =AQ4 -> 171.38 | AR6: 4633.92045 | AS6: =dobandaLegala(AR3,C30,AR6) -> 2096.250085 | AT6: 2741 | AU6: =AU4 -> 175.26 | AV6: 4803.8766 | AW6: =dobandaLegala(AV3,C30,AV6) -> 2150.430024 | AX6: 2601.375 | AY6: =AY4 -> 169.72 | AZ6: 4415.05365 | BA6: =dobandaLegala(AZ3,C30,AZ6) -> 1954.814295 | BB6: 33696.8923 | BC6: 58718.40008 | BD6: 25021.50778 | BE6: =I6+M6+Q6+U6+Y6+AC6+AG6+AK6+AO6+AS6+AW6+BA6 -> 27606.72576
C7: CRISTU | D7: GRETI | E7: 2630326120671 | F7: 2227 | G7: =G4 -> 175.68 | H7: 3912.3936 | I7: =dobandaLegala(H3,C30,H7) -> 1938.112163 | J7: 2226.625 | K7: =K4 -> 175.84 | L7: 3915.2974 | M7: =dobandaLegala(L3,C30,L7) -> 1922.280424 | N7: 2226.565217 | O7: =O4 -> 175.69 | P7: 3911.85243 | Q7: =dobandaLegala(P3,C30,P7) -> 1901.485286 | R7: 2226.552632 | S7: =S4 -> 175.21 | T7: 3901.142866 | U7: =dobandaLegala(T3,C30,T7) -> 1877.84264 | V7: 2227.136364 | W7: =W4 -> 174.71 | X7: 3891.029941 | Y7: =dobandaLegala(X3,C30,X7) -> 1853.972628 | Z7: 1991.45 | AA7: =AA4 -> 174.65 | AB7: 3478.067425 | AC7: =dobandaLegala(AB3,C30,AB7) -> 1640.769493 | AD7: 1979.178571 | AE7: =AE4 -> 174.1 | AF7: 3445.749893 | AG7: =dobandaLegala(AF3,C30,AF7) -> 1608.696248 | AH7: 2010.590909 | AI7: =AI4 -> 174.44 | AJ7: 3507.274782 | AK7: =dobandaLegala(AJ3,C30,AJ7) -> 1620.292005 | AL7: 1951.821429 | AM7: =AM4 -> 173.57 | AN7: 3387.776454 | AO7: =dobandaLegala(AN3,C30,AN7) -> 1549.075402 | AP7: 1993.772727 | AQ7: =AQ4 -> 171.38 | AR7: 3416.9277 | AS7: =dobandaLegala(AR3,C30,AR7) -> 1545.718158 | AT7: 1983.714286 | AU7: =AU4 -> 175.26 | AV7: 3476.657657 | AW7: =dobandaLegala(AV3,C30,AV7) -> 1556.307464 | AX7: 1957.270833 | AY7: =AY4 -> 169.72 | AZ7: 3321.880058 | BA7: =dobandaLegala(AZ3,C30,AZ7) -> 1470.799483 | BB7: 25001.67797 | BC7: 43566.05021 | BD7: 18564.37224 | BE7: =I7+M7+Q7+U7+Y7+AC7+AG7+AK7+AO7+AS7+AW7+BA7 -> 20485.35139
C8: DASCALU | D8: DUMITRITA | E8: 2791229312975 | F8: 0 | G8: =G4 -> 175.68 | H8: 0 | I8: =dobandaLegala(H3,C30,H8) -> 0 | J8: 0 | K8: =K4 -> 175.84 | L8: 0 | M8: =dobandaLegala(L3,C30,L8) -> 0 | N8: 0 | O8: =O4 -> 175.69 | P8: 0 | Q8: =dobandaLegala(P3,C30,P8) -> 0 | R8: 0 | S8: =S4 -> 175.21 | T8: 0 | U8: =dobandaLegala(T3,C30,T8) -> 0 | V8: 0 | W8: =W4 -> 174.71 | X8: 0 | Y8: =dobandaLegala(X3,C30,X8) -> 0 | Z8: 0 | AA8: =AA4 -> 174.65 | AB8: 0 | AC8: =dobandaLegala(AB3,C30,AB8) -> 0 | AD8: 316.5714286 | AE8: =AE4 -> 174.1 | AF8: 551.1508571 | AG8: =dobandaLegala(AF3,C30,AF8) -> 257.3124409 | AH8: 317.9090909 | AI8: =AI4 -> 174.44 | AJ8: 554.5606182 | AK8: =dobandaLegala(AJ3,C30,AJ8) -> 256.1961043 | AL8: 337.4821429 | AM8: =AM4 -> 173.57 | AN8: 585.7677554 | AO8: =dobandaLegala(AN3,C30,AN8) -> 267.8448338 | AP8: 1858.017045 | AQ8: =AQ4 -> 171.38 | AR8: 3184.269612 | AS8: =dobandaLegala(AR3,C30,AR8) -> 1440.470444 | AT8: 689.047619 | AU8: =AU4 -> 175.26 | AV8: 1207.624857 | AW8: =dobandaLegala(AV3,C30,AV8) -> 540.5868983 | AX8: 0 | AY8: =AY4 -> 169.72 | AZ8: 0 | BA8: =dobandaLegala(AZ3,C30,AZ8) -> 0 | BB8: 3519.027327 | BC8: 6083.3737 | BD8: 2564.346373 | BE8: =I8+M8+Q8+U8+Y8+AC8+AG8+AK8+AO8+AS8+AW8+BA8 -> 2762.410721
C9: DRUS | D9: ELISABETA | E9: 2761209123136 | F9: 2127 | G9: =G4 -> 175.68 | H9: 3736.7136 | I9: =dobandaLegala(H3,C30,H9) -> 1851.084225 | J9: 2129.45 | K9: =K4 -> 175.84 | L9: 3744.42488 | M9: =dobandaLegala(L3,C30,L9) -> 1838.387716 | N9: 2127.369565 | O9: =O4 -> 175.69 | P9: 3737.575589 | Q9: =dobandaLegala(P3,C30,P9) -> 1816.772262 | R9: 2126.631579 | S9: =S4 -> 175.21 | T9: 3726.071189 | U9: =dobandaLegala(T3,C30,T9) -> 1793.570654 | V9: 2127.090909 | W9: =W4 -> 174.71 | X9: 3716.240527 | Y9: =dobandaLegala(X3,C30,X9) -> 1770.690105 | Z9: 1987.4 | AA9: =AA4 -> 174.65 | AB9: 3470.9941 | AC9: =dobandaLegala(AB3,C30,AB9) -> 1637.43267 | AD9: 1919.52381 | AE9: =AE4 -> 174.1 | AF9: 3341.890952 | AG9: =dobandaLegala(AF3,C30,AF9) -> 1560.208257 | AH9: 1881.909091 | AI9: =AI4 -> 174.44 | AJ9: 3282.802218 | AK9: =dobandaLegala(AJ3,C30,AJ9) -> 1516.590093 | AL9: 1995.857143 | AM9: =AM4 -> 173.57 | AN9: 3464.209243 | AO9: =dobandaLegala(AN3,C30,AN9) -> 1584.024625 | AP9: 1896.590909 | AQ9: =AQ4 -> 171.38 | AR9: 3250.3775 | AS9: =dobandaLegala(AR3,C30,AR9) -> 1470.375719 | AT9: 1832 | AU9: =AU4 -> 175.26 | AV9: 3210.7632 | AW9: =dobandaLegala(AV3,C30,AV9) -> 1437.281213 | AX9: 1832 | AY9: =AY4 -> 169.72 | AZ9: 3109.2704 | BA9: =dobandaLegala(AZ3,C30,AZ9) -> 1376.664183 | BB9: 23982.82301 | BC9: 41791.3334 | BD9: 17808.51039 | BE9: =I9+M9+Q9+U9+Y9+AC9+AG9+AK9+AO9+AS9+AW9+BA9 -> 19653.08172
C10: DURA | D10: NICOLAE | E10: 1751123012539 | F10: 2126 | G10: =G4 -> 175.68 | H10: 3734.9568 | I10: =dobandaLegala(H3,C30,H10) -> 1850.213946 | J10: 2127.2625 | K10: =K4 -> 175.84 | L10: 3740.57838 | M10: =dobandaLegala(L3,C30,L10) -> 1836.499213 | N10: 2127.119565 | O10: =O4 -> 175.69 | P10: 3737.136364 | Q10: =dobandaLegala(P3,C30,P10) -> 1816.558762 | R10: 2126.611842 | S10: =S4 -> 175.21 | T10: 3726.036609 | U10: =dobandaLegala(T3,C30,T10) -> 1793.554008 | V10: 2127.215909 | W10: =W4 -> 174.71 | X10: 3716.458915 | Y10: =dobandaLegala(X3,C30,X10) -> 1770.794161 | Z10: 2015 | AA10: =AA4 -> 174.65 | AB10: 3519.1975 | AC10: =dobandaLegala(AB3,C30,AB10) -> 1660.172502 | AD10: 2006.047619 | AE10: =AE4 -> 174.1 | AF10: 3492.528905 | AG10: =dobandaLegala(AF3,C30,AF10) -> 1630.53568 | AH10: 1972.909091 | AI10: =AI4 -> 174.44 | AJ10: 3441.542618 | AK10: =dobandaLegala(AJ3,C30,AJ10) -> 1589.925037 | AL10: 2001.571429 | AM10: =AM4 -> 173.57 | AN10: 3474.127529 | AO10: =dobandaLegala(AN3,C30,AN10) -> 1588.559804 | AP10: 1993.477273 | AQ10: =AQ4 -> 171.38 | AR10: 3416.42135 | AS10: =dobandaLegala(AR3,C30,AR10) -> 1545.4891 | AT10: 1999.333333 | AU10: =AU4 -> 175.26 | AV10: 3504.0316 | AW10: =dobandaLegala(AV3,C30,AV10) -> 1568.561266 | AX10: 1972.916667 | AY10: =AY4 -> 169.72 | AZ10: 3348.434167 | BA10: =dobandaLegala(AZ3,C30,AZ10) -> 1482.55661 | BB10: 24595.46523 | BC10: 42851.45074 | BD10: 18255.98551 | BE10: =I10+M10+Q10+U10+Y10+AC10+AG10+AK10+AO10+AS10+AW10+BA10 -> 20133.42009
C11: DUMITRAS | D11: CORNELIA | E11: 2860626060592 | F11: 0 | G11: =G4 -> 175.68 | H11: 0 | I11: =dobandaLegala(H3,C30,H11) -> 0 | J11: 0 | K11: =K4 -> 175.84 | L11: 0 | M11: =dobandaLegala(L3,C30,L11) -> 0 | N11: 0 | O11: =O4 -> 175.69 | P11: 0 | Q11: =dobandaLegala(P3,C30,P11) -> 0 | R11: 0 | S11: =S4 -> 175.21 | T11: 0 | U11: =dobandaLegala(T3,C30,T11) -> 0 | V11: 0 | W11: =W4 -> 174.71 | X11: 0 | Y11: =dobandaLegala(X3,C30,X11) -> 0 | Z11: 0 | AA11: =AA4 -> 174.65 | AB11: 0 | AC11: =dobandaLegala(AB3,C30,AB11) -> 0 | AD11: 0 | AE11: =AE4 -> 174.1 | AF11: 0 | AG11: =dobandaLegala(AF3,C30,AF11) -> 0 | AH11: 0 | AI11: =AI4 -> 174.44 | AJ11: 0 | AK11: =dobandaLegala(AJ3,C30,AJ11) -> 0 | AL11: 0 | AM11: =AM4 -> 173.57 | AN11: 0 | AO11: =dobandaLegala(AN3,C30,AN11) -> 0 | AP11: 0 | AQ11: =AQ4 -> 171.38 | AR11: 0 | AS11: =dobandaLegala(AR3,C30,AR11) -> 0 | AT11: 0 | AU11: =AU4 -> 175.26 | AV11: 0 | AW11: =dobandaLegala(AV3,C30,AV11) -> 0 | AX11: 0 | AY11: =AY4 -> 169.72 | AZ11: 0 | BA11: =dobandaLegala(AZ3,C30,AZ11) -> 0 | BB11: 0 | BC11: 0 | BD11: 0 | BE11: =I11+M11+Q11+U11+Y11+AC11+AG11+AK11+AO11+AS11+AW11+BA11 -> 0
C12: GALMATI | D12: RODICA | E12: 2620908120010 | F12: 2227 | G12: =G4 -> 175.68 | H12: 3912.3936 | I12: =dobandaLegala(H3,C30,H12) -> 1938.112163 | J12: 2226.775 | K12: =K4 -> 175.84 | L12: 3915.56116 | M12: =dobandaLegala(L3,C30,L12) -> 1922.409921 | N12: 2227.304348 | O12: =O4 -> 175.69 | P12: 3913.151009 | Q12: =dobandaLegala(P3,C30,P12) -> 1902.116503 | R12: 2226.789474 | S12: =S4 -> 175.21 | T12: 3901.557837 | U12: =dobandaLegala(T3,C30,T12) -> 1878.042389 | V12: 2227 | W12: =W4 -> 174.71 | X12: 3890.7917 | Y12: =dobandaLegala(X3,C30,X12) -> 1853.859112 | Z12: 2019 | AA12: =AA4 -> 174.65 | AB12: 3526.1835 | AC12: =dobandaLegala(AB3,C30,AB12) -> 1663.46813 | AD12: 1966.571429 | AE12: =AE4 -> 174.1 | AF12: 3423.800857 | AG12: =dobandaLegala(AF3,C30,AF12) -> 1598.449035 | AH12: 2016.897727 | AI12: =AI4 -> 174.44 | AJ12: 3518.276395 | AK12: =dobandaLegala(AJ3,C30,AJ12) -> 1625.374534 | AL12: 1888.428571 | AM12: =AM4 -> 173.57 | AN12: 3277.745471 | AO12: =dobandaLegala(AN3,C30,AN12) -> 1498.763261 | AP12: 2016.897727 | AQ12: =AQ4 -> 171.38 | AR12: 3456.559325 | AS12: =dobandaLegala(AR3,C30,AR12) -> 1563.646346 | AT12: 2003.25 | AU12: =AU4 -> 175.26 | AV12: 3510.89595 | AW12: =dobandaLegala(AV3,C30,AV12) -> 1571.634056 | AX12: 2004.979167 | AY12: =AY4 -> 169.72 | AZ12: 3402.850642 | BA12: =dobandaLegala(AZ3,C30,AZ12) -> 1506.650112 | BB12: 25050.89344 | BC12: 43649.76745 | BD12: 18598.874 | BE12: =I12+M12+Q12+U12+Y12+AC12+AG12+AK12+AO12+AS12+AW12+BA12 -> 20522.52556
C13: ISCRU | D13: GABRIELA | E13: 2850608125788 | F13: 40.6 | G13: =G4 -> 175.68 | H13: 71.32608 | I13: =dobandaLegala(H3,C30,H13) -> 35.33334252 | J13: 41.2 | K13: =K4 -> 175.84 | L13: 72.44608 | M13: =dobandaLegala(L3,C30,L13) -> 35.56860876 | N13: 59 | O13: =O4 -> 175.69 | P13: 103.6571 | Q13: =dobandaLegala(P3,C30,P13) -> 50.38596266 | R13: 51.52631579 | S13: =S4 -> 175.21 | T13: 90.27925789 | U13: =dobandaLegala(T3,C30,T13) -> 43.45655769 | V13: 58.5 | W13: =W4 -> 174.71 | X13: 102.20535 | Y13: =dobandaLegala(X3,C30,X13) -> 48.69814013 | Z13: 7 | AA13: =AA4 -> 174.65 | AB13: 12.2255 | AC13: =dobandaLegala(AB3,C30,AB13) -> 5.767348643 | AD13: 6.904761905 | AE13: =AE4 -> 174.1 | AF13: 12.02119048 | AG13: =dobandaLegala(AF3,C30,AF13) -> 5.612259918 | AH13: 6.909090909 | AI13: =AI4 -> 174.44 | AJ13: 12.05221818 | AK13: =dobandaLegala(AJ3,C30,AJ13) -> 5.567887883 | AL13: 7.047619048 | AM13: =AM4 -> 173.57 | AN13: 12.23255238 | AO13: =dobandaLegala(AN3,C30,AN13) -> 5.59338736 | AP13: 7.363636364 | AQ13: =AQ4 -> 171.38 | AR13: 12.6198 | AS13: =dobandaLegala(AR3,C30,AR13) -> 5.708828434 | AT13: 7 | AU13: =AU4 -> 175.26 | AV13: 12.2682 | AW13: =dobandaLegala(AV3,C30,AV13) -> 5.491795028 | AX13: 7.444444444 | AY13: =AY4 -> 169.72 | AZ13: 12.63471111 | BA13: =dobandaLegala(AZ3,C30,AZ13) -> 5.594159403 | BB13: 300.4958685 | BC13: 525.96804 | BD13: 225.4721716 | BE13: =I13+M13+Q13+U13+Y13+AC13+AG13+AK13+AO13+AS13+AW13+BA13 -> 252.7782784
C14: MALSCHI FLORIAN | D14: BIANCA | E14: 2800328311458 | F14: 2021 | G14: =G4 -> 175.68 | H14: 3550.4928 | I14: =dobandaLegala(H3,C30,H14) -> 1758.834612 | J14: 2080.7 | K14: =K4 -> 175.84 | L14: 3658.70288 | M14: =dobandaLegala(L3,C30,L14) -> 1796.301074 | N14: 2081.108696 | O14: =O4 -> 175.69 | P14: 3656.299867 | Q14: =dobandaLegala(P3,C30,P14) -> 1777.265509 | R14: 2080.763158 | S14: =S4 -> 175.21 | T14: 3645.705129 | U14: =dobandaLegala(T3,C30,T14) -> 1754.885884 | V14: 2081.363636 | W14: =W4 -> 174.71 | X14: 3636.350409 | Y14: =dobandaLegala(X3,C30,X14) -> 1732.624582 | Z14: 2263.25 | AA14: =AA4 -> 174.65 | AB14: 3952.766125 | AC14: =dobandaLegala(AB3,C30,AB14) -> 1864.707402 | AD14: 2012 | AE14: =AE4 -> 174.1 | AF14: 3502.892 | AG14: =dobandaLegala(AF3,C30,AF14) -> 1635.373835 | AH14: 1936.954545 | AI14: =AI4 -> 174.44 | AJ14: 3378.823509 | AK14: =dobandaLegala(AJ3,C30,AJ14) -> 1560.950042 | AL14: 1924.666667 | AM14: =AM4 -> 173.57 | AN14: 3340.643933 | AO14: =dobandaLegala(AN3,C30,AN14) -> 1527.523854 | AP14: 1945.181818 | AQ14: =AQ4 -> 171.38 | AR14: 3333.6526 | AS14: =dobandaLegala(AR3,C30,AR14) -> 1508.046938 | AT14: 2005.75 | AU14: =AU4 -> 175.26 | AV14: 3515.27745 | AW14: =dobandaLegala(AV3,C30,AV14) -> 1573.595411 | AX14: 1987.576389 | AY14: =AY4 -> 169.72 | AZ14: 3373.314647 | BA14: =dobandaLegala(AZ3,C30,AZ14) -> 1493.572721 | BB14: 24420.31491 | BC14: 42544.92135 | BD14: 18124.60644 | BE14: =I14+M14+Q14+U14+Y14+AC14+AG14+AK14+AO14+AS14+AW14+BA14 -> 19983.68186
C15: MURESIANU MELEAN | D15: AURELIA | E15: 2821021063371 | F15: 5.6 | G15: =G4 -> 175.68 | H15: 9.83808 | I15: =dobandaLegala(H3,C30,H15) -> 4.873564486 | J15: 6.4 | K15: =K4 -> 175.84 | L15: 11.25376 | M15: =dobandaLegala(L3,C30,L15) -> 5.525220778 | N15: 6 | O15: =O4 -> 175.69 | P15: 10.5414 | Q15: =dobandaLegala(P3,C30,P15) -> 5.123996203 | R15: 6 | S15: =S4 -> 175.21 | T15: 10.5126 | U15: =dobandaLegala(T3,C30,T15) -> 5.060314174 | V15: 6 | W15: =W4 -> 174.71 | X15: 10.4826 | Y15: =dobandaLegala(X3,C30,X15) -> 4.994681039 | Z15: 7 | AA15: =AA4 -> 174.65 | AB15: 12.2255 | AC15: =dobandaLegala(AB3,C30,AB15) -> 5.767348643 | AD15: 0 | AE15: =AE4 -> 174.1 | AF15: 0 | AG15: =dobandaLegala(AF3,C30,AF15) -> 0 | AH15: 0 | AI15: =AI4 -> 174.44 | AJ15: 0 | AK15: =dobandaLegala(AJ3,C30,AJ15) -> 0 | AL15: 0 | AM15: =AM4 -> 173.57 | AN15: 0 | AO15: =dobandaLegala(AN3,C30,AN15) -> 0 | AP15: 0 | AQ15: =AQ4 -> 171.38 | AR15: 0 | AS15: =dobandaLegala(AR3,C30,AR15) -> 0 | AT15: 0 | AU15: =AU4 -> 175.26 | AV15: 0 | AW15: =dobandaLegala(AV3,C30,AV15) -> 0 | AX15: 0 | AY15: =AY4 -> 169.72 | AZ15: 0 | BA15: =dobandaLegala(AZ3,C30,AZ15) -> 0 | BB15: 37 | BC15: 64.85394 | BD15: 27.85394 | BE15: =I15+M15+Q15+U15+Y15+AC15+AG15+AK15+AO15+AS15+AW15+BA15 -> 31.34512532
C16: POP | D16: IOANA | E16: 2590712120697 | F16: 2226.7 | G16: =G4 -> 175.68 | H16: 3911.86656 | I16: =dobandaLegala(H3,C30,H16) -> 1937.851079 | J16: 2227.2 | K16: =K4 -> 175.84 | L16: 3916.30848 | M16: =dobandaLegala(L3,C30,L16) -> 1922.776831 | N16: 2226.73913 | O16: =O4 -> 175.69 | P16: 3912.157978 | Q16: =dobandaLegala(P3,C30,P16) -> 1901.633808 | R16: 2227.078947 | S16: =S4 -> 175.21 | T16: 3902.065024 | U16: =dobandaLegala(T3,C30,T16) -> 1878.286527 | V16: 2226.727273 | W16: =W4 -> 174.71 | X16: 3890.315218 | Y16: =dobandaLegala(X3,C30,X16) -> 1853.632081 | Z16: 2019 | AA16: =AA4 -> 174.65 | AB16: 3526.1835 | AC16: =dobandaLegala(AB3,C30,AB16) -> 1663.46813 | AD16: 1983.714286 | AE16: =AE4 -> 174.1 | AF16: 3453.646571 | AG16: =dobandaLegala(AF3,C30,AF16) -> 1612.382922 | AH16: 1918.039773 | AI16: =AI4 -> 174.44 | AJ16: 3345.82858 | AK16: =dobandaLegala(AJ3,C30,AJ16) -> 1545.707033 | AL16: 1940.857143 | AM16: =AM4 -> 173.57 | AN16: 3368.745743 | AO16: =dobandaLegala(AN3,C30,AN16) -> 1540.373527 | AP16: 2019 | AQ16: =AQ4 -> 171.38 | AR16: 3460.1622 | AS16: =dobandaLegala(AR3,C30,AR16) -> 1565.276181 | AT16: 2019 | AU16: =AU4 -> 175.26 | AV16: 3538.4994 | AW16: =dobandaLegala(AV3,C30,AV16) -> 1583.990594 | AX16: 1917.666667 | AY16: =AY4 -> 169.72 | AZ16: 3254.663867 | BA16: =dobandaLegala(AZ3,C30,AZ16) -> 1441.038763 | BB16: 24951.72322 | BC16: 43480.44312 | BD16: 18528.7199 | BE16: =I16+M16+Q16+U16+Y16+AC16+AG16+AK16+AO16+AS16+AW16+BA16 -> 20446.41748
C17: RUSU | D17: IOANA | E17: 2781212060787 | F17: 0 | G17: =G4 -> 175.68 | H17: 0 | I17: =dobandaLegala(H3,C30,H17) -> 0 | J17: 0 | K17: =K4 -> 175.84 | L17: 0 | M17: =dobandaLegala(L3,C30,L17) -> 0 | N17: 0 | O17: =O4 -> 175.69 | P17: 0 | Q17: =dobandaLegala(P3,C30,P17) -> 0 | R17: 0 | S17: =S4 -> 175.21 | T17: 0 | U17: =dobandaLegala(T3,C30,T17) -> 0 | V17: 0 | W17: =W4 -> 174.71 | X17: 0 | Y17: =dobandaLegala(X3,C30,X17) -> 0 | Z17: 0 | AA17: =AA4 -> 174.65 | AB17: 0 | AC17: =dobandaLegala(AB3,C30,AB17) -> 0 | AD17: 0 | AE17: =AE4 -> 174.1 | AF17: 0 | AG17: =dobandaLegala(AF3,C30,AF17) -> 0 | AH17: 264.3636364 | AI17: =AI4 -> 174.44 | AJ17: 461.1559273 | AK17: =dobandaLegala(AJ3,C30,AJ17) -> 213.0449732 | AL17: 1941 | AM17: =AM4 -> 173.57 | AN17: 3368.9937 | AO17: =dobandaLegala(AN3,C30,AN17) -> 1540.486907 | AP17: 1938.289773 | AQ17: =AQ4 -> 171.38 | AR17: 3321.841013 | AS17: =dobandaLegala(AR3,C30,AR17) -> 1502.703722 | AT17: 1932.666667 | AU17: =AU4 -> 175.26 | AV17: 3387.1916 | AW17: =dobandaLegala(AV3,C30,AV17) -> 1516.258456 | AX17: 1929.513889 | AY17: =AY4 -> 169.72 | AZ17: 3274.770972 | BA17: =dobandaLegala(AZ3,C30,AZ17) -> 1449.941409 | BB17: 8005.833965 | BC17: 13813.95321 | BD17: 5808.119247 | BE17: =I17+M17+Q17+U17+Y17+AC17+AG17+AK17+AO17+AS17+AW17+BA17 -> 6222.435466
C18: SAVAN | D18: GABRIELA | E18: 2680224123132 | F18: 0 | G18: =G4 -> 175.68 | H18: 0 | I18: =dobandaLegala(H3,C30,H18) -> 0 | J18: 2227.40625 | K18: =K4 -> 175.84 | L18: 3916.67115 | M18: =dobandaLegala(L3,C30,L18) -> 1922.95489 | N18: 2226.706522 | O18: =O4 -> 175.69 | P18: 3912.100688 | Q18: =dobandaLegala(P3,C30,P18) -> 1901.60596 | R18: 2227 | S18: =S4 -> 175.21 | T18: 3901.9267 | U18: =dobandaLegala(T3,C30,T18) -> 1878.219944 | V18: 2226.823864 | W18: =W4 -> 174.71 | X18: 3890.483972 | Y18: =dobandaLegala(X3,C30,X18) -> 1853.712488 | Z18: 1927.5 | AA18: =AA4 -> 174.65 | AB18: 3366.37875 | AC18: =dobandaLegala(AB3,C30,AB18) -> 1588.080644 | AD18: 2010.428571 | AE18: =AE4 -> 174.1 | AF18: 3500.156143 | AG18: =dobandaLegala(AF3,C30,AF18) -> 1634.096562 | AH18: 2016.897727 | AI18: =AI4 -> 174.44 | AJ18: 3518.276395 | AK18: =dobandaLegala(AJ3,C30,AJ18) -> 1625.374534 | AL18: 1911.75 | AM18: =AM4 -> 173.57 | AN18: 3318.224475 | AO18: =dobandaLegala(AN3,C30,AN18) -> 1517.27246 | AP18: 1989.568182 | AQ18: =AQ4 -> 171.38 | AR18: 3409.72195 | AS18: =dobandaLegala(AR3,C30,AR18) -> 1542.458487 | AT18: 2019 | AU18: =AU4 -> 175.26 | AV18: 3538.4994 | AW18: =dobandaLegala(AV3,C30,AV18) -> 1583.990594 | AX18: 1917.666667 | AY18: =AY4 -> 169.72 | AZ18: 3254.663867 | BA18: =dobandaLegala(AZ3,C30,AZ18) -> 1441.038763 | BB18: 22700.74778 | BC18: 39527.10349 | BD18: 16826.35571 | BE18: =I18+M18+Q18+U18+Y18+AC18+AG18+AK18+AO18+AS18+AW18+BA18 -> 18488.80533
C19: SZABO | D19: DANIELA | E19: 2650822120702 | F19: 0 | G19: =G4 -> 175.68 | H19: 0 | I19: =dobandaLegala(H3,C30,H19) -> 0 | J19: 0 | K19: =K4 -> 175.84 | L19: 0 | M19: =dobandaLegala(L3,C30,L19) -> 0 | N19: 387 | O19: =O4 -> 175.69 | P19: 679.9203 | Q19: =dobandaLegala(P3,C30,P19) -> 330.4977551 | R19: 2227.052632 | S19: =S4 -> 175.21 | T19: 3902.018916 | U19: =dobandaLegala(T3,C30,T19) -> 1878.264333 | V19: 2227 | W19: =W4 -> 174.71 | X19: 3890.7917 | Y19: =dobandaLegala(X3,C30,X19) -> 1853.859112 | Z19: 1836 | AA19: =AA4 -> 174.65 | AB19: 3206.574 | AC19: =dobandaLegala(AB3,C30,AB19) -> 1512.693158 | AD19: 1940.857143 | AE19: =AE4 -> 174.1 | AF19: 3379.032286 | AG19: =dobandaLegala(AF3,C30,AF19) -> 1577.548205 | AH19: 2019 | AI19: =AI4 -> 174.44 | AJ19: 3521.9436 | AK19: =dobandaLegala(AJ3,C30,AJ19) -> 1627.06871 | AL19: 2001.857143 | AM19: =AM4 -> 173.57 | AN19: 3474.623443 | AO19: =dobandaLegala(AN3,C30,AN19) -> 1588.786562 | AP19: 1902.272727 | AQ19: =AQ4 -> 171.38 | AR19: 3260.115 | AS19: =dobandaLegala(AR3,C30,AR19) -> 1474.780679 | AT19: 2019 | AU19: =AU4 -> 175.26 | AV19: 3538.4994 | AW19: =dobandaLegala(AV3,C30,AV19) -> 1583.990594 | AX19: 1988.5 | AY19: =AY4 -> 169.72 | AZ19: 3374.8822 | BA19: =dobandaLegala(AZ3,C30,AZ19) -> 1494.266773 | BB19: 18548.53964 | BC19: 32228.40084 | BD19: 13679.8612 | BE19: =I19+M19+Q19+U19+Y19+AC19+AG19+AK19+AO19+AS19+AW19+BA19 -> 14921.75588
C20: SABAU | D20: CORINA | E20: 2810906125799 | F20: 1779.25 | G20: =G4 -> 175.68 | H20: 3125.7864 | I20: =dobandaLegala(H3,C30,H20) -> 1548.444574 | J20: 1768.625 | K20: =K4 -> 175.84 | L20: 3109.9502 | M20: =dobandaLegala(L3,C30,L20) -> 1526.881812 | N20: 1768.782609 | O20: =O4 -> 175.69 | P20: 3107.574165 | Q20: =dobandaLegala(P3,C30,P20) -> 1510.539228 | R20: 1768.736842 | S20: =S4 -> 175.21 | T20: 3099.003821 | U20: =dobandaLegala(T3,C30,T20) -> 1491.727352 | V20: 1761.295455 | W20: =W4 -> 174.71 | X20: 3077.159289 | Y20: =dobandaLegala(X3,C30,X20) -> 1466.184835 | Z20: 1966.25 | AA20: =AA4 -> 174.65 | AB20: 3434.055625 | AC20: =dobandaLegala(AB3,C30,AB20) -> 1620.007038 | AD20: 2003.666667 | AE20: =AE4 -> 174.1 | AF20: 3488.383667 | AG20: =dobandaLegala(AF3,C30,AF20) -> 1628.600418 | AH20: 1953.409091 | AI20: =AI4 -> 174.44 | AJ20: 3407.526818 | AK20: =dobandaLegala(AJ3,C30,AJ20) -> 1574.210406 | AL20: 1924.666667 | AM20: =AM4 -> 173.57 | AN20: 3340.643933 | AO20: =dobandaLegala(AN3,C30,AN20) -> 1527.523854 | AP20: 2012 | AQ20: =AQ4 -> 171.38 | AR20: 3448.1656 | AS20: =dobandaLegala(AR3,C30,AR20) -> 1559.84927 | AT20: 2012 | AU20: =AU4 -> 175.26 | AV20: 3526.2312 | AW20: =dobandaLegala(AV3,C30,AV20) -> 1578.498799 | AX20: 2001.611111 | AY20: =AY4 -> 169.72 | AZ20: 3397.134378 | BA20: =dobandaLegala(AZ3,C30,AZ20) -> 1504.119173 | BB20: 22720.29344 | BC20: 39561.6151 | BD20: 16841.32166 | BE20: =I20+M20+Q20+U20+Y20+AC20+AG20+AK20+AO20+AS20+AW20+BA20 -> 18536.58676
C21: SOCACIU | D21: ADINA | E21: 2700613311250 | F21: 2986.5 | G21: =G4 -> 175.68 | H21: 5246.6832 | I21: =dobandaLegala(H3,C30,H21) -> 2599.089346 | J21: 2987 | K21: =K4 -> 175.84 | L21: 5252.3408 | M21: =dobandaLegala(L3,C30,L21) -> 2578.724135 | N21: 2987.304348 | O21: =O4 -> 175.69 | P21: 5248.395009 | Q21: =dobandaLegala(P3,C30,P21) -> 2551.156022 | R21: 2987 | S21: =S4 -> 175.21 | T21: 5233.5227 | U21: =dobandaLegala(T3,C30,T21) -> 2519.193073 | V21: 2987.125 | W21: =W4 -> 174.71 | X21: 5218.806088 | Y21: =dobandaLegala(X3,C30,X21) -> 2486.622767 | Z21: 2716.2 | AA21: =AA4 -> 174.65 | AB21: 4743.8433 | AC21: =dobandaLegala(AB3,C30,AB21) -> 2237.896055 | AD21: 2728.761905 | AE21: =AE4 -> 174.1 | AF21: 4750.774476 | AG21: =dobandaLegala(AF3,C30,AF21) -> 2217.965119 | AH21: 2616 | AI21: =AI4 -> 174.44 | AJ21: 4563.3504 | AK21: =dobandaLegala(AJ3,C30,AJ21) -> 2108.178181 | AL21: 2717.52381 | AM21: =AM4 -> 173.57 | AN21: 4716.806076 | AO21: =dobandaLegala(AN3,C30,AN21) -> 2156.779932 | AP21: 2741 | AQ21: =AQ4 -> 171.38 | AR21: 4697.5258 | AS21: =dobandaLegala(AR3,C30,AR21) -> 2125.023285 | AT21: 2669.571429 | AU21: =AU4 -> 175.26 | AV21: 4678.690886 | AW21: =dobandaLegala(AV3,C30,AV21) -> 2094.3913 | AX21: 2685.888889 | AY21: =AY4 -> 169.72 | AZ21: 4558.490622 | BA21: =dobandaLegala(AZ3,C30,AZ21) -> 2018.322616 | BB21: 33809.87538 | BC21: 58909.22936 | BD21: 25099.35398 | BE21: =I21+M21+Q21+U21+Y21+AC21+AG21+AK21+AO21+AS21+AW21+BA21 -> 27693.34183
C22: SONIA | D22: ALINA | E22: 2850601124242 | F22: 41.4 | G22: =G4 -> 175.68 | H22: 72.73152 | I22: =dobandaLegala(H3,C30,H22) -> 36.02956602 | J22: 41.4 | K22: =K4 -> 175.84 | L22: 72.79776 | M22: =dobandaLegala(L3,C30,L22) -> 35.74127191 | N22: 40.91304348 | O22: =O4 -> 175.69 | P22: 71.88012609 | Q22: =dobandaLegala(P3,C30,P22) -> 34.93971324 | R22: 41.05263158 | S22: =S4 -> 175.21 | T22: 71.92831579 | U22: =dobandaLegala(T3,C30,T22) -> 34.62320224 | V22: 41.09090909 | W22: =W4 -> 174.71 | X22: 71.78992727 | Y22: =dobandaLegala(X3,C30,X22) -> 34.20599742 | Z22: 54.75 | AA22: =AA4 -> 174.65 | AB22: 95.620875 | AC22: =dobandaLegala(AB3,C30,AB22) -> 45.10890545 | AD22: 49.75 | AE22: =AE4 -> 174.1 | AF22: 86.61475 | AG22: =dobandaLegala(AF3,C30,AF22) -> 40.43730034 | AH22: 52.19886364 | AI22: =AI4 -> 174.44 | AJ22: 91.05569773 | AK22: =dobandaLegala(AJ3,C30,AJ22) -> 42.06594242 | AL22: 53.5 | AM22: =AM4 -> 173.57 | AN22: 92.85995 | AO22: =dobandaLegala(AN3,C30,AN22) -> 42.46061283 | AP22: 53.21590909 | AQ22: =AQ4 -> 171.38 | AR22: 91.201425 | AS22: =dobandaLegala(AR3,C30,AR22) -> 41.25685734 | AT22: 53.25 | AU22: =AU4 -> 175.26 | AV22: 93.32595 | AW22: =dobandaLegala(AV3,C30,AV22) -> 41.77686932 | AX22: 53.59722222 | AY22: =AY4 -> 169.72 | AZ22: 90.96520556 | BA22: =dobandaLegala(AZ3,C30,AZ22) -> 40.27586033 | BB22: 576.1185791 | BC22: 1002.771502 | BD22: 426.6529233 | BE22: =I22+M22+Q22+U22+Y22+AC22+AG22+AK22+AO22+AS22+AW22+BA22 -> 468.9220989
C23: STANCA | D23: LIGIA | E23: 2790505126207 | F23: 39.4 | G23: =G4 -> 175.68 | H23: 69.21792 | I23: =dobandaLegala(H3,C30,H23) -> 34.28900728 | J23: 39.4 | K23: =K4 -> 175.84 | L23: 69.28096 | M23: =dobandaLegala(L3,C30,L23) -> 34.01464041 | N23: 1769 | O23: =O4 -> 175.69 | P23: 3107.9561 | Q23: =dobandaLegala(P3,C30,P23) -> 1510.72488 | R23: 1768.526316 | S23: =S4 -> 175.21 | T23: 3098.634958 | U23: =dobandaLegala(T3,C30,T23) -> 1491.549797 | V23: 1769.090909 | W23: =W4 -> 174.71 | X23: 3090.778727 | Y23: =dobandaLegala(X3,C30,X23) -> 1472.674137 | Z23: 2012 | AA23: =AA4 -> 174.65 | AB23: 3513.958 | AC23: =dobandaLegala(AB3,C30,AB23) -> 1657.700781 | AD23: 1994.333333 | AE23: =AE4 -> 174.1 | AF23: 3472.134333 | AG23: =dobandaLegala(AF3,C30,AF23) -> 1621.01419 | AH23: 1879.363636 | AI23: =AI4 -> 174.44 | AJ23: 3278.361927 | AK23: =dobandaLegala(AJ3,C30,AJ23) -> 1514.538766 | AL23: 2003.666667 | AM23: =AM4 -> 173.57 | AN23: 3477.764233 | AO23: =dobandaLegala(AN3,C30,AN23) -> 1590.222702 | AP23: 1972.670455 | AQ23: =AQ4 -> 171.38 | AR23: 3380.762625 | AS23: =dobandaLegala(AR3,C30,AR23) -> 1529.358136 | AT23: 2012 | AU23: =AU4 -> 175.26 | AV23: 3526.2312 | AW23: =dobandaLegala(AV3,C30,AV23) -> 1578.498799 | AX23: 1961.055556 | AY23: =AY4 -> 169.72 | AZ23: 3328.303489 | BA23: =dobandaLegala(AZ3,C30,AZ23) -> 1473.643528 | BB23: 19220.50687 | BC23: 33413.38447 | BD23: 14192.8776 | BE23: =I23+M23+Q23+U23+Y23+AC23+AG23+AK23+AO23+AS23+AW23+BA23 -> 15508.22937
C24: TINTELECAN | D24: ROMINA | E24: 2870519125471 | F24: 0 | G24: =G4 -> 175.68 | H24: 0 | I24: =dobandaLegala(H3,C30,H24) -> 0 | J24: 0 | K24: =K4 -> 175.84 | L24: 0 | M24: =dobandaLegala(L3,C30,L24) -> 0 | N24: 0 | O24: =O4 -> 175.69 | P24: 0 | Q24: =dobandaLegala(P3,C30,P24) -> 0 | R24: 37 | S24: =S4 -> 175.21 | T24: 64.8277 | U24: =dobandaLegala(T3,C30,T24) -> 31.20527074 | V24: 139 | W24: =W4 -> 174.71 | X24: 242.8469 | Y24: =dobandaLegala(X3,C30,X24) -> 115.7101107 | Z24: 459.43125 | AA24: =AA4 -> 174.65 | AB24: 802.3966781 | AC24: =dobandaLegala(AB3,C30,AB24) -> 378.5285994 | AD24: 460.047619 | AE24: =AE4 -> 174.1 | AF24: 800.9429048 | AG24: =dobandaLegala(AF3,C30,AF24) -> 373.9313315 | AH24: 477.1420455 | AI24: =AI4 -> 174.44 | AJ24: 832.3265841 | AK24: =dobandaLegala(AJ3,C30,AJ24) -> 384.5185204 | AL24: 471.297619 | AM24: =AM4 -> 173.57 | AN24: 818.0312774 | AO24: =dobandaLegala(AN3,C30,AN24) -> 374.0483314 | AP24: 476.1704545 | AQ24: =AQ4 -> 171.38 | AR24: 816.060925 | AS24: =dobandaLegala(AR3,C30,AR24) -> 369.1620955 | AT24: 478.9404762 | AU24: =AU4 -> 175.26 | AV24: 839.3910786 | AW24: =dobandaLegala(AV3,C30,AV24) -> 375.7489894 | AX24: 476.1111111 | AY24: =AY4 -> 169.72 | AZ24: 808.0557778 | BA24: =dobandaLegala(AZ3,C30,AZ24) -> 357.7757171 | BB24: 3475.140575 | BC24: 6024.879826 | BD24: 2549.73925 | BE24: =I24+M24+Q24+U24+Y24+AC24+AG24+AK24+AO24+AS24+AW24+BA24 -> 2760.628966
C25: ULIESAN | D25: DUMITRU | E25: 1600909120701 | F25: 2227 | G25: =G4 -> 175.68 | H25: 3912.3936 | I25: =dobandaLegala(H3,C30,H25) -> 1938.112163 | J25: 2227 | K25: =K4 -> 175.84 | L25: 3915.9568 | M25: =dobandaLegala(L3,C30,L25) -> 1922.604168 | N25: 2227.103261 | O25: =O4 -> 175.69 | P25: 3912.797719 | Q25: =dobandaLegala(P3,C30,P25) -> 1901.944775 | R25: 2226.914474 | S25: =S4 -> 175.21 | T25: 3901.776849 | U25: =dobandaLegala(T3,C30,T25) -> 1878.147813 | V25: 2227 | W25: =W4 -> 174.71 | X25: 3890.7917 | Y25: =dobandaLegala(X3,C30,X25) -> 1853.859112 | Z25: 2019 | AA25: =AA4 -> 174.65 | AB25: 3526.1835 | AC25: =dobandaLegala(AB3,C30,AB25) -> 1663.46813 | AD25: 2010.428571 | AE25: =AE4 -> 174.1 | AF25: 3500.156143 | AG25: =dobandaLegala(AF3,C30,AF25) -> 1634.096562 | AH25: 1985.363636 | AI25: =AI4 -> 174.44 | AJ25: 3463.268327 | AK25: =dobandaLegala(AJ3,C30,AJ25) -> 1599.961888 | AL25: 2019 | AM25: =AM4 -> 173.57 | AN25: 3504.3783 | AO25: =dobandaLegala(AN3,C30,AN25) -> 1602.392099 | AP25: 1952.727273 | AQ25: =AQ4 -> 171.38 | AR25: 3346.584 | AS25: =dobandaLegala(AR3,C30,AR25) -> 1513.896725 | AT25: 1973.946429 | AU25: =AU4 -> 175.26 | AV25: 3459.538511 | AW25: =dobandaLegala(AV3,C30,AV25) -> 1548.644169 | AX25: 1955.541667 | AY25: =AY4 -> 169.72 | AZ25: 3318.945317 | BA25: =dobandaLegala(AZ3,C30,AZ25) -> 1469.500093 | BB25: 25051.02531 | BC25: 43652.77077 | BD25: 18601.74546 | BE25: =I25+M25+Q25+U25+Y25+AC25+AG25+AK25+AO25+AS25+AW25+BA25 -> 20526.6277
C26: VERMESAN | D26: ALEXANDRA | E26: 2610301125176 | F26: 2227.28125 | G26: =G4 -> 175.68 | H26: 3912.8877 | I26: =dobandaLegala(H3,C30,H26) -> 1938.356929 | J26: 2227.28125 | K26: =K4 -> 175.84 | L26: 3916.45135 | M26: =dobandaLegala(L3,C30,L26) -> 1922.846975 | N26: 2226.61413 | O26: =O4 -> 175.69 | P26: 3911.938366 | Q26: =dobandaLegala(P3,C30,P26) -> 1901.527058 | R26: 2227.322368 | S26: =S4 -> 175.21 | T26: 3902.491522 | U26: =dobandaLegala(T3,C30,T26) -> 1878.491825 | V26: 2227.079545 | W26: =W4 -> 174.71 | X26: 3890.930674 | Y26: =dobandaLegala(X3,C30,X26) -> 1853.92533 | Z26: 2010.15 | AA26: =AA4 -> 174.65 | AB26: 3510.726975 | AC26: =dobandaLegala(AB3,C30,AB26) -> 1656.176553 | AD26: 2010.428571 | AE26: =AE4 -> 174.1 | AF26: 3500.156143 | AG26: =dobandaLegala(AF3,C30,AF26) -> 1634.096562 | AH26: 1902.272727 | AI26: =AI4 -> 174.44 | AJ26: 3318.324545 | AK26: =dobandaLegala(AJ3,C30,AJ26) -> 1533.00071 | AL26: 2012.821429 | AM26: =AM4 -> 173.57 | AN26: 3493.654154 | AO26: =dobandaLegala(AN3,C30,AN26) -> 1597.488437 | AP26: 2016.897727 | AQ26: =AQ4 -> 171.38 | AR26: 3456.559325 | AS26: =dobandaLegala(AR3,C30,AR26) -> 1563.646346 | AT26: 2009.232143 | AU26: =AU4 -> 175.26 | AV26: 3521.380254 | AW26: =dobandaLegala(AV3,C30,AV26) -> 1576.327299 | AX26: 2000.0625 | AY26: =AY4 -> 169.72 | AZ26: 3394.506075 | BA26: =dobandaLegala(AZ3,C30,AZ26) -> 1502.955462 | BB26: 25097.44364 | BC26: 43730.00708 | BD26: 18632.56344 | BE26: =I26+M26+Q26+U26+Y26+AC26+AG26+AK26+AO26+AS26+AW26+BA26 -> 20558.83949
BB27: =SUM(BB4:BB26) -> 378048.0159 | BC27: =SUM(BC4:BC26) -> 658133.7485 | BD27: =BC27-BB27 -> 280085.7325
B30: Data stop dobândă variabilă | C30: 2024-04-30
B31: Data stop inflație principal | C31: 2026-01-01

Sheet 2018
A2: Capitol bugetar / Sursă de finanţare | B2: Categorie personal | C2: Nume | D2: Prenume | E2: CNP | F2: ian | G2: ipc | H2: brut cu ipc | I2: Dobânda | J2: feb | K2: ipc | L2: brut cu ipc | M2: Dobânda | N2: mar | O2: ipc | P2: brut cu ipc | Q2: Dobânda | R2: apr | S2: ipc | T2: brut cu ipc | U2: Dobânda | V2: mai | W2: ipc | X2: brut cu ipc | Y2: Dobânda | Z2: iun | AA2: ipc | AB2: brut cu ipc | AC2: Dobânda | AD2: iul | AE2: ipc | AF2: brut cu ipc | AG2: Dobânda | AH2: aug | AI2: ipc | AJ2: brut cu ipc | AK2: Dobânda | AL2: sep | AM2: ipc | AN2: brut cu ipc | AO2: Dobânda | AP2: oct | AQ2: ipc | AR2: brut cu ipc | AS2: Dobânda | AT2: noi | AU2: ipc | AV2: brut cu ipc | AW2: Dobânda | AX2: dec | AY2: ipc | AZ2: brut cu ipc | BA2: Dobânda | BB2: TOTAL BRUT | BC2: total 2018 CU IPC | BD2: IPC 2018 | BE2: Dobanda totală diferențe 2018
B3: Data start calcul dobândă | H3: 2018-02-01 | L3: 2018-03-01 | P3: 2018-04-01 | T3: 2018-05-01 | X3: 2018-06-01 | AB3: 2018-07-01 | AF3: 2018-08-01 | AJ3: 2018-09-01 | AN3: 2018-10-01 | AR3: 2018-11-01 | AV3: 2018-12-01 | AZ3: 2019-01-01
C4: BELDEAN | D4: PAUL | E4: 1760425310761 | F4: 2817.53125 | G4: 168.4 | H4: =F4*G4/100 -> 4744.722625 | I4: =dobandaLegala(H3,C30,H4) -> 2094.799264 | J4: 2852 | K4: 167.9 | L4: =F4*G4/100 -> 4744.722625 | M4: =dobandaLegala(L3,C30,L4) -> 2094.799264 | N4: 2968.954545 | O4: 167.42 | P4: =F4*G4/100 -> 4744.722625 | Q4: =dobandaLegala(P3,C30,P4) -> 2094.799264 | R4: 2982 | S4: 166.52 | T4: =R4*S4/100 -> 4965.6264 | U4: =dobandaLegala(T3,C30,T4) -> 2192.328477 | V4: 2741.619048 | W4: 165.74 | X4: =V4*W4/100 -> 4543.95941 | Y4: =dobandaLegala(X3,C30,X4) -> 2006.162125 | Z4: 2885 | AA4: 165.71 | AB4: =Z4*AA4/100 -> 4780.7335 | AC4: =dobandaLegala(AB3,C30,AB4) -> 2110.698097 | AD4: 2734.818182 | AE4: 166.5 | AF4: =AD4*AE4/100 -> 4553.472273 | AG4: =dobandaLegala(AF3,C30,AF4) -> 2010.362063 | AH4: 2875.636364 | AI4: 166.04 | AJ4: =AH4*AI4/100 -> 4774.706618 | AK4: =dobandaLegala(AJ3,C30,AJ4) -> 2108.037223 | AL4: 2845.2 | AM4: 165.25 | AN4: =AL4*AM4/100 -> 4701.693 | AO4: =dobandaLegala(AN3,C30,AN4) -> 2075.801646 | AP4: 2982 | AQ4: 164.4 | AR4: =AP4*AQ4/100 -> 4902.408 | AS4: =dobandaLegala(AR3,C30,AR4) -> 2164.417497 | AT4: 2982 | AU4: 164.62 | AV4: =AT4*AU4/100 -> 4908.9684 | AW4: =dobandaLegala(AV3,C30,AV4) -> 2167.31392 | AX4: 2798.052632 | AY4: 164.35 | AZ4: =AX4*AY4/100 -> 4598.5995 | BA4: =dobandaLegala(AZ3,C30,AZ4) -> 2030.285774 | BB4: =AX4+AT4+AP4+AL4+AH4+AD4+Z4+V4+R4+N4+J4+F4 -> 34464.81202 | BC4: =AZ4+AV4+AR4+AN4+AJ4+AF4+AB4+X4+T4+P4+L4+H4 -> 56964.33498 | BD4: =BC4-BB4 -> 22499.52296 | BE4: =I4+M4+Q4+U4+Y4+AC4+AG4+AK4+AO4+AS4+AW4+BA4 -> 25149.80461
C5: BUFTEA | D5: IZABELLA | E5: 2790919191322 | F5: 485.6 | G5: =G4 -> 168.4 | H5: =F5*G5/100 -> 817.7504 | I5: =dobandaLegala(H3,C30,H5) -> 361.0375297 | J5: 479.2 | K5: =K4 -> 167.9 | L5: =J5*K5/100 -> 804.5768 | M5: =dobandaLegala(L3,C30,L5) -> 355.2213736 | N5: 490.8181818 | O5: =O4 -> 167.42 | P5: =N5*O5/100 -> 821.7278 | Q5: =dobandaLegala(P3,C30,P5) -> 362.7935554 | R5: 504.6842105 | S5: =S4 -> 166.52 | T5: =R5*S5/100 -> 840.4001474 | U5: =dobandaLegala(T3,C30,T5) -> 371.0374134 | V5: 505.7142857 | W5: =W4 -> 165.74 | X5: =V5*W5/100 -> 838.1708571 | Y5: =dobandaLegala(X3,C30,X5) -> 370.0531797 | Z5: 515 | AA5: =AA4 -> 165.71 | AB5: =Z5*AA5/100 -> 853.4065 | AC5: =dobandaLegala(AB3,C30,AB5) -> 376.7797296 | AD5: 487.5454545 | AE5: =AE4 -> 166.5 | AF5: =AD5*AE5/100 -> 811.7631818 | AG5: =dobandaLegala(AF3,C30,AF5) -> 358.3941676 | AH5: 506.1818182 | AI5: =AI4 -> 166.04 | AJ5: =AH5*AI5/100 -> 840.4642909 | AK5: =dobandaLegala(AJ3,C30,AJ5) -> 371.0657328 | AL5: 515 | AM5: =AM4 -> 165.25 | AN5: =AL5*AM5/100 -> 851.0375 | AO5: =dobandaLegala(AN3,C30,AN5) -> 375.733814 | AP5: 515 | AQ5: =AQ4 -> 164.4 | AR5: =AP5*AQ5/100 -> 846.66 | AS5: =dobandaLegala(AR3,C30,AR5) -> 373.8011439 | AT5: 515 | AU5: =AU4 -> 164.62 | AV5: =AT5*AU5/100 -> 847.793 | AW5: =dobandaLegala(AV3,C30,AV5) -> 374.3013644 | AX5: 504.6842105 | AY5: =AY4 -> 164.35 | AZ5: =AX5*AY5/100 -> 829.4485 | BA5: =dobandaLegala(AZ3,C30,AZ5) -> 366.2022513 | BB5: 6024.428161 | BC5: 10003.19898 | BD5: =BC5-BB5 -> 3978.770816 | BE5: 4416.421255
C6: CAMPEAN | D6: ANCA | E6: 2680927120704 | F6: 3787 | G6: =G4 -> 168.4 | H6: 6377.308 | I6: =dobandaLegala(H3,C30,H6) -> 2815.58716 | J6: 3782.6875 | K6: =K4 -> 167.9 | L6: 6351.132313 | M6: =dobandaLegala(L3,C30,L6) -> 2804.030571 | N6: 3719.295455 | O6: =O4 -> 167.42 | P6: 6226.84445 | Q6: =dobandaLegala(P3,C30,P6) -> 2749.157369 | R6: 3960 | S6: =S4 -> 166.52 | T6: 6594.192 | U6: =dobandaLegala(T3,C30,T6) -> 2911.34164 | V6: 3910.666667 | W6: =W4 -> 165.74 | X6: 6481.538933 | Y6: =dobandaLegala(X3,C30,X6) -> 2861.60521 | Z6: 3960 | AA6: =AA4 -> 165.71 | AB6: 6562.116 | AC6: =dobandaLegala(AB3,C30,AB6) -> 2897.180057 | AD6: 3866.090909 | AE6: =AE4 -> 166.5 | AF6: 6437.041364 | AG6: =dobandaLegala(AF3,C30,AF6) -> 2841.959494 | AH6: 3960 | AI6: =AI4 -> 166.04 | AJ6: 6575.184 | AK6: =dobandaLegala(AJ3,C30,AJ6) -> 2902.949591 | AL6: 3830.5 | AM6: =AM4 -> 165.25 | AN6: 6329.90125 | AO6: =dobandaLegala(AN3,C30,AN6) -> 2794.657038 | AP6: 3960 | AQ6: =AQ4 -> 164.4 | AR6: 6510.24 | AS6: =dobandaLegala(AR3,C30,AR6) -> 2874.276757 | AT6: 3960 | AU6: =AU4 -> 164.62 | AV6: 6518.952 | AW6: =dobandaLegala(AV3,C30,AV6) -> 2878.123113 | AX6: 3960 | AY6: =AY4 -> 164.35 | AZ6: 6508.26 | BA6: =dobandaLegala(AZ3,C30,AZ6) -> 2873.402585 | BB6: 46656.24053 | BC6: 77472.71031 | BD6: 30816.46978 | BE6: 34204.27058
C7: CRISTU | D7: GRETI | E7: 2630326120671 | F7: 2775.95 | G7: =G4 -> 168.4 | H7: 4674.6998 | I7: =dobandaLegala(H3,C30,H7) -> 2063.884124 | J7: 2867 | K7: =K4 -> 167.9 | L7: 4813.693 | M7: =dobandaLegala(L3,C30,L7) -> 2125.249746 | N7: 2986.056818 | O7: =O4 -> 167.42 | P7: 4999.256325 | Q7: =dobandaLegala(P3,C30,P7) -> 2207.176119 | R7: 2976.526316 | S7: =S4 -> 166.52 | T7: 4956.511621 | U7: =dobandaLegala(T3,C30,T7) -> 2188.304294 | V7: 2977.809524 | W7: =W4 -> 165.74 | X7: 4935.421505 | Y7: =dobandaLegala(X3,C30,X7) -> 2178.992989 | Z7: 2957.6 | AA7: =AA4 -> 165.71 | AB7: 4901.03896 | AC7: =dobandaLegala(AB3,C30,AB7) -> 2163.813065 | AD7: 2908.454545 | AE7: =AE4 -> 166.5 | AF7: 4842.576818 | AG7: =dobandaLegala(AF3,C30,AF7) -> 2138.001977 | AH7: 2997 | AI7: =AI4 -> 166.04 | AJ7: 4976.2188 | AK7: =dobandaLegala(AJ3,C30,AJ7) -> 2197.005031 | AL7: 2937.9 | AM7: =AM4 -> 165.25 | AN7: 4854.87975 | AO7: =dobandaLegala(AN3,C30,AN7) -> 2143.433732 | AP7: 2980.173913 | AQ7: =AQ4 -> 164.4 | AR7: 4899.405913 | AS7: =dobandaLegala(AR3,C30,AR7) -> 2163.092073 | AT7: 2959.619048 | AU7: =AU4 -> 164.62 | AV7: 4872.124876 | AW7: =dobandaLegala(AV3,C30,AV7) -> 2151.047471 | AX7: 2770.789474 | AY7: =AY4 -> 164.35 | AZ7: 4553.7925 | BA7: =dobandaLegala(AZ3,C30,AZ7) -> 2010.503443 | BB7: 35094.87964 | BC7: 58279.61987 | BD7: 23184.74023 | BE7: 25730.50406
C8: DASCALU | D8: DUMITRITA | E8: 2791229312975 | F8: 0 | G8: =G4 -> 168.4 | H8: 0 | I8: =dobandaLegala(H3,C30,H8) -> 0 | J8: 0 | K8: =K4 -> 167.9 | L8: 0 | M8: =dobandaLegala(L3,C30,L8) -> 0 | N8: 0 | O8: =O4 -> 167.42 | P8: 0 | Q8: =dobandaLegala(P3,C30,P8) -> 0 | R8: 0 | S8: =S4 -> 166.52 | T8: 0 | U8: =dobandaLegala(T3,C30,T8) -> 0 | V8: 0 | W8: =W4 -> 165.74 | X8: 0 | Y8: =dobandaLegala(X3,C30,X8) -> 0 | Z8: 0 | AA8: =AA4 -> 165.71 | AB8: 0 | AC8: =dobandaLegala(AB3,C30,AB8) -> 0 | AD8: 0 | AE8: =AE4 -> 166.5 | AF8: 0 | AG8: =dobandaLegala(AF3,C30,AF8) -> 0 | AH8: 0 | AI8: =AI4 -> 166.04 | AJ8: 0 | AK8: =dobandaLegala(AJ3,C30,AJ8) -> 0 | AL8: 0 | AM8: =AM4 -> 165.25 | AN8: 0 | AO8: =dobandaLegala(AN3,C30,AN8) -> 0 | AP8: 0 | AQ8: =AQ4 -> 164.4 | AR8: 0 | AS8: =dobandaLegala(AR3,C30,AR8) -> 0 | AT8: 0 | AU8: =AU4 -> 164.62 | AV8: 0 | AW8: =dobandaLegala(AV3,C30,AV8) -> 0 | AX8: 0 | AY8: =AY4 -> 164.35 | AZ8: 0 | BA8: =dobandaLegala(AZ3,C30,AZ8) -> 0 | BB8: 0 | BC8: 0 | BD8: 0 | BE8: 0
C9: DRUS | D9: ELISABETA | E9: 2761209123136 | F9: 1694 | G9: =G4 -> 168.4 | H9: 2852.696 | I9: =dobandaLegala(H3,C30,H9) -> 1259.467824 | J9: 1694 | K9: =K4 -> 167.9 | L9: 2844.226 | M9: =dobandaLegala(L3,C30,L9) -> 1255.728312 | N9: 1863 | O9: =O4 -> 167.42 | P9: 3119.0346 | Q9: =dobandaLegala(P3,C30,P9) -> 1377.056553 | R9: 1609 | S9: =S4 -> 166.52 | T9: 2679.3068 | U9: =dobandaLegala(T3,C30,T9) -> 1182.916338 | V9: 1778 | W9: =W4 -> 165.74 | X9: 2946.8572 | Y9: =dobandaLegala(X3,C30,X9) -> 1301.040078 | Z9: 1694 | AA9: =AA4 -> 165.71 | AB9: 2807.1274 | AC9: =dobandaLegala(AB3,C30,AB9) -> 1239.349247 | AD9: 1863 | AE9: =AE4 -> 166.5 | AF9: 3101.895 | AG9: =dobandaLegala(AF3,C30,AF9) -> 1369.489404 | AH9: 1863 | AI9: =AI4 -> 166.04 | AJ9: 3093.3252 | AK9: =dobandaLegala(AJ3,C30,AJ9) -> 1365.70583 | AL9: 1694 | AM9: =AM4 -> 165.25 | AN9: 2799.335 | AO9: =dobandaLegala(AN3,C30,AN9) -> 1235.908895 | AP9: 1947 | AQ9: =AQ4 -> 164.4 | AR9: 3200.868 | AS9: =dobandaLegala(AR3,C30,AR9) -> 1413.186072 | AT9: 1778 | AU9: =AU4 -> 164.62 | AV9: 2926.9436 | AW9: =dobandaLegala(AV3,C30,AV9) -> 1292.248206 | AX9: 1609 | AY9: =AY4 -> 164.35 | AZ9: 2644.3915 | BA9: =dobandaLegala(AZ3,C30,AZ9) -> 1167.501202 | BB9: 21086 | BC9: 35016.0063 | BD9: 13930.0063 | BE9: 15459.59796
C10: DURA | D10: NICOLAE | E10: 1751123012539 | F10: 2845.875 | G10: =G4 -> 168.4 | H10: 4792.4535 | I10: =dobandaLegala(H3,C30,H10) -> 2115.872488 | J10: 2800 | K10: =K4 -> 167.9 | L10: 4701.2 | M10: =dobandaLegala(L3,C30,L10) -> 2075.583986 | N10: 2959.590909 | O10: =O4 -> 167.42 | P10: 4954.9471 | Q10: =dobandaLegala(P3,C30,P10) -> 2187.613557 | R10: 2940.789474 | S10: =S4 -> 166.52 | T10: 4897.002632 | U10: =dobandaLegala(T3,C30,T10) -> 2162.031022 | V10: 2963.047619 | W10: =W4 -> 165.74 | X10: 4910.955124 | Y10: =dobandaLegala(X3,C30,X10) -> 2168.19106 | Z10: 2982 | AA10: =AA4 -> 165.71 | AB10: 4941.4722 | AC10: =dobandaLegala(AB3,C30,AB10) -> 2181.664376 | AD10: 2893.363636 | AE10: =AE4 -> 166.5 | AF10: 4817.450455 | AG10: =dobandaLegala(AF3,C30,AF10) -> 2126.908665 | AH10: 2857.909091 | AI10: =AI4 -> 166.04 | AJ10: 4745.272255 | AK10: =dobandaLegala(AJ3,C30,AJ10) -> 2095.041926 | AL10: 2982 | AM10: =AM4 -> 165.25 | AN10: 4927.755 | AO10: =dobandaLegala(AN3,C30,AN10) -> 2175.60822 | AP10: 2982 | AQ10: =AQ4 -> 164.4 | AR10: 4902.408 | AS10: =dobandaLegala(AR3,C30,AR10) -> 2164.417497 | AT10: 2945.095238 | AU10: =AU4 -> 164.62 | AV10: 4848.215781 | AW10: =dobandaLegala(AV3,C30,AV10) -> 2140.491584 | AX10: 2899.578947 | AY10: =AY4 -> 164.35 | AZ10: 4765.458 | BA10: =dobandaLegala(AZ3,C30,AZ10) -> 2103.95395 | BB10: 35051.24991 | BC10: 58204.59005 | BD10: 23153.34013 | BE10: 25697.37833
C11: DUMITRAS | D11: CORNELIA | E11: 2860626060592 | F11: 0 | G11: =G4 -> 168.4 | H11: 0 | I11: =dobandaLegala(H3,C30,H11) -> 0 | J11: 0 | K11: =K4 -> 167.9 | L11: 0 | M11: =dobandaLegala(L3,C30,L11) -> 0 | N11: 0 | O11: =O4 -> 167.42 | P11: 0 | Q11: =dobandaLegala(P3,C30,P11) -> 0 | R11: 0 | S11: =S4 -> 166.52 | T11: 0 | U11: =dobandaLegala(T3,C30,T11) -> 0 | V11: 0 | W11: =W4 -> 165.74 | X11: 0 | Y11: =dobandaLegala(X3,C30,X11) -> 0 | Z11: 0 | AA11: =AA4 -> 165.71 | AB11: 0 | AC11: =dobandaLegala(AB3,C30,AB11) -> 0 | AD11: 0 | AE11: =AE4 -> 166.5 | AF11: 0 | AG11: =dobandaLegala(AF3,C30,AF11) -> 0 | AH11: 0 | AI11: =AI4 -> 166.04 | AJ11: 0 | AK11: =dobandaLegala(AJ3,C30,AJ11) -> 0 | AL11: 0 | AM11: =AM4 -> 165.25 | AN11: 0 | AO11: =dobandaLegala(AN3,C30,AN11) -> 0 | AP11: 0 | AQ11: =AQ4 -> 164.4 | AR11: 0 | AS11: =dobandaLegala(AR3,C30,AR11) -> 0 | AT11: 68.28571429 | AU11: =AU4 -> 164.62 | AV11: 112.4119429 | AW11: =dobandaLegala(AV3,C30,AV11) -> 49.62997286 | AX11: 65.89473684 | AY11: =AY4 -> 164.35 | AZ11: 108.298 | BA11: =dobandaLegala(AZ3,C30,AZ11) -> 47.81366343 | BB11: 134.1804511 | BC11: 220.7099429 | BD11: 86.52949173 | BE11: 97.44363629
C12: GALMATI | D12: RODICA | E12: 2620908120010 | F12: 2867 | G12: =G4 -> 168.4 | H12: 4828.028 | I12: =dobandaLegala(H3,C30,H12) -> 2131.578661 | J12: 2867 | K12: =K4 -> 167.9 | L12: 4813.693 | M12: =dobandaLegala(L3,C30,L12) -> 2125.249746 | N12: 2993.022727 | O12: =O4 -> 167.42 | P12: 5010.91865 | Q12: =dobandaLegala(P3,C30,P12) -> 2212.325046 | R12: 2997 | S12: =S4 -> 166.52 | T12: 4990.6044 | U12: =dobandaLegala(T3,C30,T12) -> 2203.356286 | V12: 2829.285714 | W12: =W4 -> 165.74 | X12: 4689.258143 | Y12: =dobandaLegala(X3,C30,X12) -> 2070.311645 | Z12: 2997 | AA12: =AA4 -> 165.71 | AB12: 4966.3287 | AC12: =dobandaLegala(AB3,C30,AB12) -> 2192.638543 | AD12: 2908.454545 | AE12: =AE4 -> 166.5 | AF12: 4842.576818 | AG12: =dobandaLegala(AF3,C30,AF12) -> 2138.001977 | AH12: 2997 | AI12: =AI4 -> 166.04 | AJ12: 4976.2188 | AK12: =dobandaLegala(AJ3,C30,AJ12) -> 2197.005031 | AL12: 2997 | AM12: =AM4 -> 165.25 | AN12: 4952.5425 | AO12: =dobandaLegala(AN3,C30,AN12) -> 2186.551924 | AP12: 2928.695652 | AQ12: =AQ4 -> 164.4 | AR12: 4814.775652 | AS12: =dobandaLegala(AR3,C30,AR12) -> 2125.727738 | AT12: 2997 | AU12: =AU4 -> 164.62 | AV12: 4933.6614 | AW12: =dobandaLegala(AV3,C30,AV12) -> 2178.215901 | AX12: 2852.684211 | AY12: =AY4 -> 164.35 | AZ12: 4688.3865 | BA12: =dobandaLegala(AZ3,C30,AZ12) -> 2069.926814 | BB12: 35231.14285 | BC12: 58506.99256 | BD12: 23275.84971 | BE12: 25830.88931
C13: ISCRU | D13: GABRIELA | E13: 2850608125788 | F13: 9 | G13: =G4 -> 168.4 | H13: 15.156 | I13: =dobandaLegala(H3,C30,H13) -> 6.691387495 | J13: 9.5 | K13: =K4 -> 167.9 | L13: 15.9505 | M13: =dobandaLegala(L3,C30,L13) -> 7.042159953 | N13: 10 | O13: =O4 -> 167.42 | P13: 16.742 | Q13: =dobandaLegala(P3,C30,P13) -> 7.391607907 | R13: 9.526315789 | S13: =S4 -> 166.52 | T13: 15.86322105 | U13: =dobandaLegala(T3,C30,T13) -> 7.00362622 | V13: 10.28571429 | W13: =W4 -> 165.74 | X13: 17.04754286 | Y13: =dobandaLegala(X3,C30,X13) -> 7.526505351 | Z13: 10 | AA13: =AA4 -> 165.71 | AB13: 16.571 | AC13: =dobandaLegala(AB3,C30,AB13) -> 7.316111255 | AD13: 10 | AE13: =AE4 -> 166.5 | AF13: 16.65 | AG13: =dobandaLegala(AF3,C30,AF13) -> 7.350989825 | AH13: 9.636363636 | AI13: =AI4 -> 166.04 | AJ13: 16.00021818 | AK13: =dobandaLegala(AJ3,C30,AJ13) -> 7.064110574 | AL13: 10 | AM13: =AM4 -> 165.25 | AN13: 16.525 | AO13: =dobandaLegala(AN3,C30,AN13) -> 7.295802214 | AP13: 10.08695652 | AQ13: =AQ4 -> 164.4 | AR13: 16.58295652 | AS13: =dobandaLegala(AR3,C30,AR13) -> 7.32139007 | AT13: 9.761904762 | AU13: =AU4 -> 164.62 | AV13: 16.07004762 | AW13: =dobandaLegala(AV3,C30,AV13) -> 7.094940333 | AX13: 3131.210526 | AY13: =AY4 -> 164.35 | AZ13: 5146.1445 | BA13: =dobandaLegala(AZ3,C30,AZ13) -> 2272.027379 | BB13: 3239.007781 | BC13: 5325.302986 | BD13: 2086.295205 | BE13: 2351.12601
C14: MALSCHI FLORIAN | D14: BIANCA | E14: 2800328311458 | F14: 2839.81875 | G14: =G4 -> 168.4 | H14: 4782.254775 | I14: =dobandaLegala(H3,C30,H14) -> 2111.369741 | J14: 2828.55 | K14: =K4 -> 167.9 | L14: 4749.13545 | M14: =dobandaLegala(L3,C30,L14) -> 2096.74753 | N14: 2899.636364 | O14: =O4 -> 167.42 | P14: 4854.5712 | Q14: =dobandaLegala(P3,C30,P14) -> 2143.297507 | R14: 2929.421053 | S14: =S4 -> 166.52 | T14: 4878.071937 | U14: =dobandaLegala(T3,C30,T14) -> 2153.673104 | V14: 2933.47619 | W14: =W4 -> 165.74 | X14: 4861.943438 | Y14: =dobandaLegala(X3,C30,X14) -> 2146.552357 | Z14: 2931.7 | AA14: =AA4 -> 165.71 | AB14: 4858.12007 | AC14: =dobandaLegala(AB3,C30,AB14) -> 2144.864337 | AD14: 2970 | AE14: =AE4 -> 166.5 | AF14: 4945.05 | AG14: =dobandaLegala(AF3,C30,AF14) -> 2183.243978 | AH14: 2811.681818 | AI14: =AI4 -> 166.04 | AJ14: 4668.516491 | AK14: =dobandaLegala(AJ3,C30,AJ14) -> 2061.154188 | AL14: 2970 | AM14: =AM4 -> 165.25 | AN14: 4907.925 | AO14: =dobandaLegala(AN3,C30,AN14) -> 2166.853258 | AP14: 2953.391304 | AQ14: =AQ4 -> 164.4 | AR14: 4855.375304 | AS14: =dobandaLegala(AR3,C30,AR14) -> 2143.65252 | AT14: 2933.47619 | AU14: =AU4 -> 164.62 | AV14: 4829.088505 | AW14: =dobandaLegala(AV3,C30,AV14) -> 2132.046875 | AX14: 2888.842105 | AY14: =AY4 -> 164.35 | AZ14: 4747.812 | BA14: =dobandaLegala(AZ3,C30,AZ14) -> 2096.163226 | BB14: 34889.99378 | BC14: 57937.86417 | BD14: 23047.87039 | BE14: 25579.61862
C15: MURESIANU MELEAN | D15: AURELIA | E15: 2821021063371 | F15: 0 | G15: =G4 -> 168.4 | H15: 0 | I15: =dobandaLegala(H3,C30,H15) -> 0 | J15: 0 | K15: =K4 -> 167.9 | L15: 0 | M15: =dobandaLegala(L3,C30,L15) -> 0 | N15: 0 | O15: =O4 -> 167.42 | P15: 0 | Q15: =dobandaLegala(P3,C30,P15) -> 0 | R15: 0 | S15: =S4 -> 166.52 | T15: 0 | U15: =dobandaLegala(T3,C30,T15) -> 0 | V15: 0 | W15: =W4 -> 165.74 | X15: 0 | Y15: =dobandaLegala(X3,C30,X15) -> 0 | Z15: 0 | AA15: =AA4 -> 165.71 | AB15: 0 | AC15: =dobandaLegala(AB3,C30,AB15) -> 0 | AD15: 0 | AE15: =AE4 -> 166.5 | AF15: 0 | AG15: =dobandaLegala(AF3,C30,AF15) -> 0 | AH15: 0 | AI15: =AI4 -> 166.04 | AJ15: 0 | AK15: =dobandaLegala(AJ3,C30,AJ15) -> 0 | AL15: 0 | AM15: =AM4 -> 165.25 | AN15: 0 | AO15: =dobandaLegala(AN3,C30,AN15) -> 0 | AP15: 0 | AQ15: =AQ4 -> 164.4 | AR15: 0 | AS15: =dobandaLegala(AR3,C30,AR15) -> 0 | AT15: 0 | AU15: =AU4 -> 164.62 | AV15: 0 | AW15: =dobandaLegala(AV3,C30,AV15) -> 0 | AX15: 0 | AY15: =AY4 -> 164.35 | AZ15: 0 | BA15: =dobandaLegala(AZ3,C30,AZ15) -> 0 | BB15: 0 | BC15: 0 | BD15: 0 | BE15: 0
C16: POP | D16: IOANA | E16: 2590712120697 | F16: 2867 | G16: =G4 -> 168.4 | H16: 4828.028 | I16: =dobandaLegala(H3,C30,H16) -> 2131.578661 | J16: 2865.60625 | K16: =K4 -> 167.9 | L16: 4811.352894 | M16: =dobandaLegala(L3,C30,L16) -> 2124.216587 | N16: 2995.011364 | O16: =O4 -> 167.42 | P16: 5014.248025 | Q16: =dobandaLegala(P3,C30,P16) -> 2213.794968 | R16: 2997 | S16: =S4 -> 166.52 | T16: 4990.6044 | U16: =dobandaLegala(T3,C30,T16) -> 2203.356286 | V16: 2866.666667 | W16: =W4 -> 165.74 | X16: 4751.213333 | Y16: =dobandaLegala(X3,C30,X16) -> 2097.664917 | Z16: 2997 | AA16: =AA4 -> 165.71 | AB16: 4966.3287 | AC16: =dobandaLegala(AB3,C30,AB16) -> 2192.638543 | AD16: 2908.454545 | AE16: =AE4 -> 166.5 | AF16: 4842.576818 | AG16: =dobandaLegala(AF3,C30,AF16) -> 2138.001977 | AH16: 2818.909091 | AI16: =AI4 -> 166.04 | AJ16: 4680.516655 | AK16: =dobandaLegala(AJ3,C30,AJ16) -> 2066.452271 | AL16: 2997 | AM16: =AM4 -> 165.25 | AN16: 4952.5425 | AO16: =dobandaLegala(AN3,C30,AN16) -> 2186.551924 | AP16: 2946.521739 | AQ16: =AQ4 -> 164.4 | AR16: 4844.081739 | AS16: =dobandaLegala(AR3,C30,AR16) -> 2138.666401 | AT16: 2997 | AU16: =AU4 -> 164.62 | AV16: 4933.6614 | AW16: =dobandaLegala(AV3,C30,AV16) -> 2178.215901 | AX16: 2997 | AY16: =AY4 -> 164.35 | AZ16: 4925.5695 | BA16: =dobandaLegala(AZ3,C30,AZ16) -> 2174.64332 | BB16: 35253.16966 | BC16: 58540.72396 | BD16: 23287.55431 | BE16: 25845.78176
C17: RUSU | D17: IOANA | E17: 2781212060787 | F17: 2653.4 | G17: =G4 -> 168.4 | H17: 4468.3256 | I17: =dobandaLegala(H3,C30,H17) -> 1972.769731 | J17: 2715.65 | K17: =K4 -> 167.9 | L17: 4559.57635 | M17: =dobandaLegala(L3,C30,L17) -> 2013.057018 | N17: 2827.227273 | O17: =O4 -> 167.42 | P17: 4733.3439 | Q17: =dobandaLegala(P3,C30,P17) -> 2089.775546 | R17: 2858.210526 | S17: =S4 -> 166.52 | T17: 4759.492168 | U17: =dobandaLegala(T3,C30,T17) -> 2101.32003 | V17: 2860.238095 | W17: =W4 -> 165.74 | X17: 4740.558619 | Y17: =dobandaLegala(X3,C30,X17) -> 2092.960851 | Z17: 2878 | AA17: =AA4 -> 165.71 | AB17: 4769.1338 | AC17: =dobandaLegala(AB3,C30,AB17) -> 2105.576819 | AD17: 2776.454545 | AE17: =AE4 -> 166.5 | AF17: 4622.796818 | AG17: =dobandaLegala(AF3,C30,AF17) -> 2040.968911 | AH17: 2742.272727 | AI17: =AI4 -> 166.04 | AJ17: 4553.269636 | AK17: =dobandaLegala(AJ3,C30,AJ17) -> 2010.272599 | AL17: 2784.25 | AM17: =AM4 -> 165.25 | AN17: 4600.973125 | AO17: =dobandaLegala(AN3,C30,AN17) -> 2031.333731 | AP17: 2878 | AQ17: =AQ4 -> 164.4 | AR17: 4731.432 | AS17: =dobandaLegala(AR3,C30,AR17) -> 2088.931441 | AT17: 2878 | AU17: =AU4 -> 164.62 | AV17: 4737.7636 | AW17: =dobandaLegala(AV3,C30,AV17) -> 2091.726848 | AX17: 2819.631579 | AY17: =AY4 -> 164.35 | AZ17: 4634.0645 | BA17: =dobandaLegala(AZ3,C30,AZ17) -> 2045.943603 | BB17: 33671.33475 | BC17: 55910.73012 | BD17: 22239.39537 | BE17: 24684.63713
C18: SAVAN | D18: GABRIELA | E18: 2680224123132 | F18: 2859.03125 | G18: =G4 -> 168.4 | H18: 4814.608625 | I18: =dobandaLegala(H3,C30,H18) -> 2125.653995 | J18: 2860.425 | K18: =K4 -> 167.9 | L18: 4802.653575 | M18: =dobandaLegala(L3,C30,L18) -> 2120.37583 | N18: 2961.181818 | O18: =O4 -> 167.42 | P18: 4957.6106 | Q18: =dobandaLegala(P3,C30,P18) -> 2188.789494 | R18: 2956.052632 | S18: =S4 -> 166.52 | T18: 4922.418842 | U18: =dobandaLegala(T3,C30,T18) -> 2173.252302 | V18: 2977.809524 | W18: =W4 -> 165.74 | X18: 4935.421505 | Y18: =dobandaLegala(X3,C30,X18) -> 2178.992989 | Z18: 2957.6 | AA18: =AA4 -> 165.71 | AB18: 4901.03896 | AC18: =dobandaLegala(AB3,C30,AB18) -> 2163.813065 | AD18: 2979.090909 | AE18: =AE4 -> 166.5 | AF18: 4960.186364 | AG18: =dobandaLegala(AF3,C30,AF18) -> 2189.926696 | AH18: 2926.363636 | AI18: =AI4 -> 166.04 | AJ18: 4858.934182 | AK18: =dobandaLegala(AJ3,C30,AJ18) -> 2145.223768 | AL18: 2879.8 | AM18: =AM4 -> 165.25 | AN18: 4758.8695 | AO18: =dobandaLegala(AN3,C30,AN18) -> 2101.045122 | AP18: 2997 | AQ18: =AQ4 -> 164.4 | AR18: 4927.068 | AS18: =dobandaLegala(AR3,C30,AR18) -> 2175.304909 | AT18: 2977.809524 | AU18: =AU4 -> 164.62 | AV18: 4902.070038 | AW18: =dobandaLegala(AV3,C30,AV18) -> 2164.268287 | AX18: 2852.684211 | AY18: =AY4 -> 164.35 | AZ18: 4688.3865 | BA18: =dobandaLegala(AZ3,C30,AZ18) -> 2069.926814 | BB18: 35184.8485 | BC18: 58429.26669 | BD18: 23244.41819 | BE18: 25796.57327
C19: SZABO | D19: DANIELA | E19: 2650822120702 | F19: 2860.425 | G19: =G4 -> 168.4 | H19: 4816.9557 | I19: =dobandaLegala(H3,C30,H19) -> 2126.690231 | J19: 2840.7 | K19: =K4 -> 167.9 | L19: 4769.5353 | M19: =dobandaLegala(L3,C30,L19) -> 2105.754082 | N19: 2972.125 | O19: =O4 -> 167.42 | P19: 4975.931675 | Q19: =dobandaLegala(P3,C30,P19) -> 2196.878265 | R19: 2832.210526 | S19: =S4 -> 166.52 | T19: 4716.196968 | U19: =dobandaLegala(T3,C30,T19) -> 2082.205161 | V19: 2959.619048 | W19: =W4 -> 165.74 | X19: 4905.27261 | Y19: =dobandaLegala(X3,C30,X19) -> 2165.682225 | Z19: 2997 | AA19: =AA4 -> 165.71 | AB19: 4966.3287 | AC19: =dobandaLegala(AB3,C30,AB19) -> 2192.638543 | AD19: 2979.090909 | AE19: =AE4 -> 166.5 | AF19: 4960.186364 | AG19: =dobandaLegala(AF3,C30,AF19) -> 2189.926696 | AH19: 2979.090909 | AI19: =AI4 -> 166.04 | AJ19: 4946.482545 | AK19: =dobandaLegala(AJ3,C30,AJ19) -> 2183.876448 | AL19: 2937.9 | AM19: =AM4 -> 165.25 | AN19: 4854.87975 | AO19: =dobandaLegala(AN3,C30,AN19) -> 2143.433732 | AP19: 2895.043478 | AQ19: =AQ4 -> 164.4 | AR19: 4759.451478 | AS19: =dobandaLegala(AR3,C30,AR19) -> 2101.302066 | AT19: 2959.619048 | AU19: =AU4 -> 164.62 | AV19: 4872.124876 | AW19: =dobandaLegala(AV3,C30,AV19) -> 2151.047471 | AX19: 2935.578947 | AY19: =AY4 -> 164.35 | AZ19: 4824.624 | BA19: =dobandaLegala(AZ3,C30,AZ19) -> 2130.075792 | BB19: 35148.40287 | BC19: 58367.96997 | BD19: 23219.5671 | BE19: 25769.51071
C20: SABAU | D20: CORINA | E20: 2810906125799 | F20: 2724.95 | G20: =G4 -> 168.4 | H20: 4588.8158 | I20: =dobandaLegala(H3,C30,H20) -> 2025.966262 | J20: 2647.25 | K20: =K4 -> 167.9 | L20: 4444.73275 | M20: =dobandaLegala(L3,C30,L20) -> 1962.353467 | N20: 2670.954545 | O20: =O4 -> 167.42 | P20: 4471.7121 | Q20: =dobandaLegala(P3,C30,P20) -> 1974.264874 | R20: 2868.052632 | S20: =S4 -> 166.52 | T20: 4775.881242 | U20: =dobandaLegala(T3,C30,T20) -> 2108.555821 | V20: 2878.190476 | W20: =W4 -> 165.74 | X20: 4770.312895 | Y20: =dobandaLegala(X3,C30,X20) -> 2106.097391 | Z20: 2873.25 | AA20: =AA4 -> 165.71 | AB20: 4761.262575 | AC20: =dobandaLegala(AB3,C30,AB20) -> 2102.101666 | AD20: 2970 | AE20: =AE4 -> 166.5 | AF20: 4945.05 | AG20: =dobandaLegala(AF3,C30,AF20) -> 2183.243978 | AH20: 2970 | AI20: =AI4 -> 166.04 | AJ20: 4931.388 | AK20: =dobandaLegala(AJ3,C30,AJ20) -> 2177.212193 | AL20: 2873.25 | AM20: =AM4 -> 165.25 | AN20: 4748.045625 | AO20: =dobandaLegala(AN3,C30,AN20) -> 2096.266371 | AP20: 2885.956522 | AQ20: =AQ4 -> 164.4 | AR20: 4744.512522 | AS20: =dobandaLegala(AR3,C30,AR20) -> 2094.706503 | AT20: 2970 | AU20: =AU4 -> 164.62 | AV20: 4889.214 | AW20: =dobandaLegala(AV3,C30,AV20) -> 2158.592334 | AX20: 2807.684211 | AY20: =AY4 -> 164.35 | AZ20: 4614.429 | BA20: =dobandaLegala(AZ3,C30,AZ20) -> 2037.274512 | BB20: 34139.53839 | BC20: 56685.35651 | BD20: 22545.81812 | BE20: 25026.63537
C21: SOCACIU | D21: ADINA | E21: 2700613311250 | F21: 3787 | G21: =G4 -> 168.4 | H21: 6377.308 | I21: =dobandaLegala(H3,C30,H21) -> 2815.58716 | J21: 3787 | K21: =K4 -> 167.9 | L21: 6358.373 | M21: =dobandaLegala(L3,C30,L21) -> 2807.227341 | N21: 3960 | O21: =O4 -> 167.42 | P21: 6629.832 | Q21: =dobandaLegala(P3,C30,P21) -> 2927.076731 | R21: 3905.052632 | S21: =S4 -> 166.52 | T21: 6502.693642 | U21: =dobandaLegala(T3,C30,T21) -> 2870.945033 | V21: 3910.666667 | W21: =W4 -> 165.74 | X21: 6481.538933 | Y21: =dobandaLegala(X3,C30,X21) -> 2861.60521 | Z21: 3960 | AA21: =AA4 -> 165.71 | AB21: 6562.116 | AC21: =dobandaLegala(AB3,C30,AB21) -> 2897.180057 | AD21: 3936.272727 | AE21: =AE4 -> 166.5 | AF21: 6553.894091 | AG21: =dobandaLegala(AF3,C30,AF21) -> 2893.550077 | AH21: 3842.363636 | AI21: =AI4 -> 166.04 | AJ21: 6379.860582 | AK21: =dobandaLegala(AJ3,C30,AJ21) -> 2816.714128 | AL21: 3856.4 | AM21: =AM4 -> 165.25 | AN21: 6372.701 | AO21: =dobandaLegala(AN3,C30,AN21) -> 2813.553166 | AP21: 3712.521739 | AQ21: =AQ4 -> 164.4 | AR21: 6103.385739 | AS21: =dobandaLegala(AR3,C30,AR21) -> 2694.650238 | AT21: 3960 | AU21: =AU4 -> 164.62 | AV21: 6518.952 | AW21: =dobandaLegala(AV3,C30,AV21) -> 2878.123113 | AX21: 3878.578947 | AY21: =AY4 -> 164.35 | AZ21: 6374.4445 | BA21: =dobandaLegala(AZ3,C30,AZ21) -> 2814.322923 | BB21: 46495.85635 | BC21: 77215.09949 | BD21: 30719.24314 | BE21: =I21+M21+Q21+U21+Y21+AC21+AG21+AK21+AO21+AS21+AW21+BA21 -> 34090.53518
C22: SONIA | D22: ALINA | E22: 2850601124242 | F22: 137.05 | G22: =G4 -> 168.4 | H22: 230.7922 | I22: =dobandaLegala(H3,C30,H22) -> 101.8949618 | J22: 132.8 | K22: =K4 -> 167.9 | L22: 222.9712 | M22: =dobandaLegala(L3,C30,L22) -> 98.44198334 | N22: 142.6988636 | O22: =O4 -> 167.42 | P22: 238.9064375 | Q22: =dobandaLegala(P3,C30,P22) -> 105.4774049 | R22: 144 | S22: =S4 -> 166.52 | T22: 239.7888 | U22: =dobandaLegala(T3,C30,T22) -> 105.8669687 | V22: 143.6666667 | W22: =W4 -> 165.74 | X22: 238.1131333 | Y22: =dobandaLegala(X3,C30,X22) -> 105.1271604 | Z22: 144 | AA22: =AA4 -> 165.71 | AB22: 238.6224 | AC22: =dobandaLegala(AB3,C30,AB22) -> 105.3520021 | AD22: 143.6818182 | AE22: =AE4 -> 166.5 | AF22: 239.2302273 | AG22: =dobandaLegala(AF3,C30,AF22) -> 105.6203584 | AH22: 136.1363636 | AI22: =AI4 -> 166.04 | AJ22: 226.0408182 | AK22: =dobandaLegala(AJ3,C30,AJ22) -> 99.7972225 | AL22: 138.3 | AM22: =AM4 -> 165.25 | AN22: 228.54075 | AO22: =dobandaLegala(AN3,C30,AN22) -> 100.9009446 | AP22: 143.6086957 | AQ22: =AQ4 -> 164.4 | AR22: 236.0926957 | AS22: =dobandaLegala(AR3,C30,AR22) -> 104.2351353 | AT22: 144 | AU22: =AU4 -> 164.62 | AV22: 237.0528 | AW22: =dobandaLegala(AV3,C30,AV22) -> 104.6590223 | AX22: 137.8947368 | AY22: =AY4 -> 164.35 | AZ22: 226.63 | BA22: =dobandaLegala(AZ3,C30,AZ22) -> 100.0573468 | BB22: 1687.837145 | BC22: 2802.781462 | BD22: 1114.944317 | BE22: 1237.430511
C23: STANCA | D23: LIGIA | E23: 2790505126207 | F23: 2735.0375 | G23: =G4 -> 168.4 | H23: 4605.80315 | I23: =dobandaLegala(H3,C30,H23) -> 2033.466192 | J23: 2776.75 | K23: =K4 -> 167.9 | L23: 4662.16325 | M23: =dobandaLegala(L3,C30,L23) -> 2058.349226 | N23: 2956.806818 | O23: =O4 -> 167.42 | P23: 4950.285975 | Q23: =dobandaLegala(P3,C30,P23) -> 2185.555666 | R23: 2970 | S23: =S4 -> 166.52 | T23: 4945.644 | U23: =dobandaLegala(T3,C30,T23) -> 2183.50623 | V23: 2970 | W23: =W4 -> 165.74 | X23: 4922.478 | Y23: =dobandaLegala(X3,C30,X23) -> 2173.27842 | Z23: 2970 | AA23: =AA4 -> 165.71 | AB23: 4921.587 | AC23: =dobandaLegala(AB3,C30,AB23) -> 2172.885043 | AD23: 2934.818182 | AE23: =AE4 -> 166.5 | AF23: 4886.472273 | AG23: =dobandaLegala(AF3,C30,AF23) -> 2157.381859 | AH23: 2688.545455 | AI23: =AI4 -> 166.04 | AJ23: 4464.060873 | AK23: =dobandaLegala(AJ3,C30,AJ23) -> 1970.88685 | AL23: 2950.85 | AM23: =AM4 -> 165.25 | AN23: 4876.279625 | AO23: =dobandaLegala(AN3,C30,AN23) -> 2152.881796 | AP23: 2982 | AQ23: =AQ4 -> 164.4 | AR23: 4902.408 | AS23: =dobandaLegala(AR3,C30,AR23) -> 2164.417497 | AT23: 2982 | AU23: =AU4 -> 164.62 | AV23: 4908.9684 | AW23: =dobandaLegala(AV3,C30,AV23) -> 2167.31392 | AX23: 2940.789474 | AY23: =AY4 -> 164.35 | AZ23: 4833.1875 | BA23: =dobandaLegala(AZ3,C30,AZ23) -> 2133.856585 | BB23: 34857.59743 | BC23: 57879.33805 | BD23: 23021.74062 | BE23: 25553.77928
C24: TINTELECAN | D24: ROMINA | E24: 2870519125471 | F24: 599.45 | G24: =G4 -> 168.4 | H24: 1009.4738 | I24: =dobandaLegala(H3,C30,H24) -> 445.6835815 | J24: 598.63125 | K24: =K4 -> 167.9 | L24: 1005.101869 | M24: =dobandaLegala(L3,C30,L24) -> 443.75337 | N24: 619.9318182 | O24: =O4 -> 167.42 | P24: 1037.88985 | Q24: =dobandaLegala(P3,C30,P24) -> 458.2292929 | R24: 629 | S24: =S4 -> 166.52 | T24: 1047.4108 | U24: =dobandaLegala(T3,C30,T24) -> 462.4328008 | V24: 629 | W24: =W4 -> 165.74 | X24: 1042.5046 | Y24: =dobandaLegala(X3,C30,X24) -> 460.2667092 | Z24: 612.8 | AA24: =AA4 -> 165.71 | AB24: 1015.47088 | AC24: =dobandaLegala(AB3,C30,AB24) -> 448.3312977 | AD24: 584.1818182 | AE24: =AE4 -> 166.5 | AF24: 972.6627273 | AG24: =dobandaLegala(AF3,C30,AF24) -> 429.4314602 | AH24: 617.5454545 | AI24: =AI4 -> 166.04 | AJ24: 1025.372473 | AK24: =dobandaLegala(AJ3,C30,AJ24) -> 452.7028597 | AL24: 604.2 | AM24: =AM4 -> 165.25 | AN24: 998.4405 | AO24: =dobandaLegala(AN3,C30,AN24) -> 440.8123698 | AP24: 629 | AQ24: =AQ4 -> 164.4 | AR24: 1034.076 | AS24: =dobandaLegala(AR3,C30,AR24) -> 456.5454748 | AT24: 629 | AU24: =AU4 -> 164.62 | AV24: 1035.4598 | AW24: =dobandaLegala(AV3,C30,AV24) -> 457.1564237 | AX24: 616.1578947 | AY24: =AY4 -> 164.35 | AZ24: 1012.6555 | BA24: =dobandaLegala(AZ3,C30,AZ24) -> 447.0883049 | BB24: 7368.898236 | BC24: 12236.5188 | BD24: 4867.620563 | BE24: 5402.433945
C25: ULIESAN | D25: DUMITRU | E25: 1600909120701 | F25: 2860.425 | G25: =G4 -> 168.4 | H25: 4816.9557 | I25: =dobandaLegala(H3,C30,H25) -> 2126.690231 | J25: 2865.60625 | K25: =K4 -> 167.9 | L25: 4811.352894 | M25: =dobandaLegala(L3,C30,L25) -> 2124.216587 | N25: 2993.022727 | O25: =O4 -> 167.42 | P25: 5010.91865 | Q25: =dobandaLegala(P3,C30,P25) -> 2212.325046 | R25: 2956.052632 | S25: =S4 -> 166.52 | T25: 4922.418842 | U25: =dobandaLegala(T3,C30,T25) -> 2173.252302 | V25: 2959.619048 | W25: =W4 -> 165.74 | X25: 4905.27261 | Y25: =dobandaLegala(X3,C30,X25) -> 2165.682225 | Z25: 2977.3 | AA25: =AA4 -> 165.71 | AB25: 4933.68383 | AC25: =dobandaLegala(AB3,C30,AB25) -> 2178.225804 | AD25: 2943.272727 | AE25: =AE4 -> 166.5 | AF25: 4900.549091 | AG25: =dobandaLegala(AF3,C30,AF25) -> 2163.596787 | AH25: 2694.545455 | AI25: =AI4 -> 166.04 | AJ25: 4474.023273 | AK25: =dobandaLegala(AJ3,C30,AJ25) -> 1975.285259 | AL25: 2977.3 | AM25: =AM4 -> 165.25 | AN25: 4919.98825 | AO25: =dobandaLegala(AN3,C30,AN25) -> 2172.179193 | AP25: 2997 | AQ25: =AQ4 -> 164.4 | AR25: 4927.068 | AS25: =dobandaLegala(AR3,C30,AR25) -> 2175.304909 | AT25: 2997 | AU25: =AU4 -> 164.62 | AV25: 4933.6614 | AW25: =dobandaLegala(AV3,C30,AV25) -> 2178.215901 | AX25: 2915.105263 | AY25: =AY4 -> 164.35 | AZ25: 4790.9755 | BA25: =dobandaLegala(AZ3,C30,AZ25) -> 2115.219949 | BB25: 35136.2491 | BC25: 58346.86804 | BD25: 23210.61894 | BE25: 25760.19419
C26: VERMESAN | D26: ALEXANDRA | E26: 2610301125176 | F26: 2861.81875 | G26: =G4 -> 168.4 | H26: 4819.302775 | I26: =dobandaLegala(H3,C30,H26) -> 2127.726466 | J26: 2867 | K26: =K4 -> 167.9 | L26: 4813.693 | M26: =dobandaLegala(L3,C30,L26) -> 2125.249746 | N26: 2890.545455 | O26: =O4 -> 167.42 | P26: 4839.3512 | Q26: =dobandaLegala(P3,C30,P26) -> 2136.577864 | R26: 2915.105263 | S26: =S4 -> 166.52 | T26: 4854.233284 | U26: =dobandaLegala(T3,C30,T26) -> 2143.148317 | V26: 2997 | W26: =W4 -> 165.74 | X26: 4967.2278 | Y26: =dobandaLegala(X3,C30,X26) -> 2193.035497 | Z26: 2997 | AA26: =AA4 -> 165.71 | AB26: 4966.3287 | AC26: =dobandaLegala(AB3,C30,AB26) -> 2192.638543 | AD26: 2784.090909 | AE26: =AE4 -> 166.5 | AF26: 4635.511364 | AG26: =dobandaLegala(AF3,C30,AF26) -> 2046.582395 | AH26: 2997 | AI26: =AI4 -> 166.04 | AJ26: 4976.2188 | AK26: =dobandaLegala(AJ3,C30,AJ26) -> 2197.005031 | AL26: 2997 | AM26: =AM4 -> 165.25 | AN26: 4952.5425 | AO26: =dobandaLegala(AN3,C30,AN26) -> 2186.551924 | AP26: 2963.347826 | AQ26: =AQ4 -> 164.4 | AR26: 4871.743826 | AS26: =dobandaLegala(AR3,C30,AR26) -> 2150.879237 | AT26: 2997 | AU26: =AU4 -> 164.62 | AV26: 4933.6614 | AW26: =dobandaLegala(AV3,C30,AV26) -> 2178.215901 | AX26: 2915.105263 | AY26: =AY4 -> 164.35 | AZ26: 4790.9755 | BA26: =dobandaLegala(AZ3,C30,AZ26) -> 2115.219949 | BB26: 35182.01347 | BC26: 58420.79015 | BD26: 23238.77668 | BE26: 25792.83087
BE27: =SUM(BE4:BE26) -> 429477.3966
B30: Data stop calcul dobândă | C30: 2024-04-30
B31: Data stop inflație principal | C31: 2026-01-01

Sheet 2019
A2: Capitol bugetar / Sursă de finanţare | B2: Categorie personal | C2: Nume | D2: Prenume | E2: CNP | F2: ian | G2: IPC | H2: brut cu IPC | I2: Dobânda | J2: feb | K2: IPC | L2: brut cu IPC | M2: Dobânda | N2: mar | O2: IPC | P2: brut cu IPC | Q2: Dobânda | R2: apr | S2: IPC | T2: brut cu IPC | U2: Dobânda | V2: mai | W2: IPC | X2: brut cu IPC | Y2: Dobânda | Z2: iun | AA2: IPC | AB2: brut cu IPC | AC2: Dobânda | AD2: iul | AE2: IPC | AF2: brut cu IPC | AG2: Dobânda | AH2: aug | AI2: IPC | AJ2: brut cu IPC | AK2: Dobânda | AL2: sep | AM2: IPC | AN2: brut cu IPC | AO2: Dobânda | AP2: oct | AQ2: IPC | AR2: brut cu IPC | AS2: Dobânda | AT2: noi | AU2: IPC | AV2: brut cu IPC | AW2: Dobânda | AX2: dec | AY2: IPC | AZ2: brut cu IPC | BA2: Dobânda | BB2: TOTAL BRUT | BC2: total 2019 CU IPC | BD2: IPC 2019 | BE2: Dobânda totală diferențe 2019
B3: Data start calcul dobândă | H3: 2019-02-01 | L3: 2019-03-01 | P3: 2019-04-01 | T3: 2019-05-01 | X3: 2019-06-01 | AB3: 2019-07-01 | AF3: 2019-08-01 | AJ3: 2019-09-01 | AN3: 2019-10-01 | AR3: 2019-11-01 | AV3: 2019-12-01 | AZ3: 2020-01-01
C4: BELDEAN | D4: PAUL | E4: 1760425310761 | F4: 1718.2 | G4: 162.99 | H4: =F4*G4/100 -> 2800.49418 | I4: =dobandaLegala(H3,C30,H4) -> 1236.420674 | J4: 1854 | K4: 161.72 | L4: =J4*K4/100 -> 2998.2888 | M4: =dobandaLegala(L3,C30,L4) -> 1323.747175 | N4: 1835.047619 | O4: 160.92 | P4: =N4*O4/100 -> 2952.958629 | Q4: =dobandaLegala(P3,C30,P4) -> 1303.733864 | R4: 1834.6 | S4: 159.94 | T4: =R4*S4/100 -> 2934.25924 | U4: =dobandaLegala(T3,C30,T4) -> 1295.478067 | V4: 1650 | W4: 159.22 | X4: =V4*W4/100 -> 2627.13 | Y4: =dobandaLegala(X3,C30,X4) -> 1159.880234 | Z4: 1854 | AA4: 159.59 | AB4: =Z4*AA4/100 -> 2958.7986 | AC4: =dobandaLegala(AB3,C30,AB4) -> 1306.312216 | AD4: 1718.434783 | AE4: 159.91 | AF4: =AD4*AE4/100 -> 2747.949061 | AG4: =dobandaLegala(AF3,C30,AF4) -> 1213.221957 | AH4: 1798.142857 | AI4: 159.82 | AJ4: =AH4*AI4/100 -> 2873.791914 | AK4: =dobandaLegala(AJ3,C30,AJ4) -> 1268.781689 | AL4: 1798.142857 | AM4: 159.68 | AN4: =AL4*AM4/100 -> 2871.274514 | AO4: =dobandaLegala(AN3,C30,AN4) -> 1267.670255 | AP4: 1854 | AQ4: 159 | AR4: =AP4*AQ4/100 -> 2947.86 | AS4: =dobandaLegala(AR3,C30,AR4) -> 1301.482815 | AT4: 1740.238095 | AU4: 158.64 | AV4: =AT4*AU4/100 -> 2760.713714 | AW4: =dobandaLegala(AV3,C30,AV4) -> 1218.857563 | AX4: 1815.2 | AY4: 157.97 | AZ4: =AX4*AY4/100 -> 2867.47144 | BA4: =dobandaLegala(AZ3,C30,AZ4) -> 1265.991194 | BB4: =AX4+AT4+AP4+AL4+AH4+AD4+Z4+V4+R4+N4+J4+F4 -> 21470.00621 | BC4: =AZ4+AV4+AR4+AN4+AJ4+AF4+AB4+X4+T4+P4+L4+H4 -> 34340.99009 | BD4: =BC4-BB4 -> 12870.98388 | BE4: =I4+M4+Q4+U4+Y4+AC4+AG4+AK4+AO4+AS4+AW4+BA4 -> 15161.5777
C5: BUFTEA | D5: IZABELLA | E5: 2790919191322 | F5: 1574.4 | G5: =G4 -> 162.99 | H5: =F5*G5/100 -> 2566.11456 | I5: =dobandaLegala(H3,C30,H5) -> 1132.941863 | J5: 1617 | K5: =K4 -> 161.72 | L5: 2615.0124 | M5: =dobandaLegala(L3,C30,L5) -> 1154.530303 | N5: 1607.238095 | O5: =O4 -> 160.92 | P5: 2586.367543 | Q5: =dobandaLegala(P3,C30,P5) -> 1141.883573 | R5: 1595.7 | S5: =S4 -> 159.94 | T5: 2552.16258 | U5: =dobandaLegala(T3,C30,T5) -> 1126.782052 | V5: 1617 | W5: =W4 -> 159.22 | X5: 2574.5874 | Y5: =dobandaLegala(X3,C30,X5) -> 1136.68263 | Z5: 1617 | AA5: =AA4 -> 159.59 | AB5: 2580.5703 | AC5: =dobandaLegala(AB3,C30,AB5) -> 1139.324085 | AD5: 1607.391304 | AE5: =AE4 -> 159.91 | AF5: 2570.379435 | AG5: =dobandaLegala(AF3,C30,AF5) -> 1134.824809 | AH5: 1506.619048 | AI5: =AI4 -> 159.82 | AJ5: 2407.878562 | AK5: =dobandaLegala(AJ3,C30,AJ5) -> 1063.080529 | AL5: 1607.238095 | AM5: =AM4 -> 159.68 | AN5: 2566.43779 | AO5: =dobandaLegala(AN3,C30,AN5) -> 1133.08457 | AP5: 1562.347826 | AQ5: =AQ4 -> 159 | AR5: 2484.133043 | AS5: =dobandaLegala(AR3,C30,AR5) -> 1096.746951 | AT5: 1596.47619 | AU5: =AU4 -> 158.64 | AV5: 2532.649829 | AW5: =dobandaLegala(AV3,C30,AV5) -> 1118.167154 | AX5: 1617 | AY5: =AY4 -> 157.97 | AZ5: 2554.3749 | BA5: =dobandaLegala(AZ3,C30,AZ5) -> 1127.758793 | BB5: =AX5+AT5+AP5+AL5+AH5+AD5+Z5+V5+R5+N5+J5+F5 -> 19125.41056 | BC5: =AZ5+AV5+AR5+AN5+AJ5+AF5+AB5+X5+T5+P5+L5+H5 -> 30590.66834 | BD5: =BC5-BB5 -> 11465.25778 | BE5: 13505.80731
C6: CAMPEAN | D6: ANCA | E6: 2680927120704 | F6: 2467 | G6: =G4 -> 162.99 | H6: 4020.9633 | I6: =dobandaLegala(H3,C30,H6) -> 1775.258877 | J6: 2467 | K6: =K4 -> 161.72 | L6: 3989.6324 | M6: =dobandaLegala(L3,C30,L6) -> 1761.426257 | N6: 2467 | O6: =O4 -> 160.92 | P6: 3969.8964 | Q6: =dobandaLegala(P3,C30,P6) -> 1752.712795 | R6: 2441.1 | S6: =S4 -> 159.94 | T6: 3904.29534 | U6: =dobandaLegala(T3,C30,T6) -> 1723.749869 | V6: 2467 | W6: =W4 -> 159.22 | X6: 3927.9574 | Y6: =dobandaLegala(X3,C30,X6) -> 1734.19669 | Z6: 2221.736842 | AA6: =AA4 -> 159.59 | AB6: 3545.669826 | AC6: =dobandaLegala(AB3,C30,AB6) -> 1565.416385 | AD6: 2467 | AE6: =AE4 -> 159.91 | AF6: 3944.9797 | AG6: =dobandaLegala(AF3,C30,AF6) -> 1741.71205 | AH6: 2467 | AI6: =AI4 -> 159.82 | AJ6: 3942.7594 | AK6: =dobandaLegala(AJ3,C30,AJ6) -> 1740.731786 | AL6: 2467 | AM6: =AM4 -> 159.68 | AN6: 3939.3056 | AO6: =dobandaLegala(AN3,C30,AN6) -> 1739.20693 | AP6: 2467 | AQ6: =AQ4 -> 159 | AR6: 3922.53 | AS6: =dobandaLegala(AR3,C30,AR6) -> 1731.800488 | AT6: 2442.333333 | AU6: =AU4 -> 158.64 | AV6: 3874.5176 | AW6: =dobandaLegala(AV3,C30,AV6) -> 1710.60297 | AX6: 2337.5 | AY6: =AY4 -> 157.97 | AZ6: 3692.54875 | BA6: =dobandaLegala(AZ3,C30,AZ6) -> 1630.263561 | BB6: 29178.67018 | BC6: 46675.05572 | BD6: 17496.38554 | BE6: 20607.07866
C7: CRISTU | D7: GRETI | E7: 2630326120671 | F7: 1848 | G7: =G4 -> 162.99 | H7: 3012.0552 | I7: =dobandaLegala(H3,C30,H7) -> 1329.825053 | J7: 1848 | K7: =K4 -> 161.72 | L7: 2988.5856 | M7: =dobandaLegala(L3,C30,L7) -> 1319.463203 | N7: 1755.047619 | O7: =O4 -> 160.92 | P7: 2824.222629 | Q7: =dobandaLegala(P3,C30,P7) -> 1246.896805 | R7: 1828.3 | S7: =S4 -> 159.94 | T7: 2924.18302 | U7: =dobandaLegala(T3,C30,T7) -> 1291.029407 | V7: 1848 | W7: =W4 -> 159.22 | X7: 2942.3856 | Y7: =dobandaLegala(X3,C30,X7) -> 1299.065862 | Z7: 1827.526316 | AA7: =AA4 -> 159.59 | AB7: 2916.549247 | AC7: =dobandaLegala(AB3,C30,AB7) -> 1287.65909 | AD7: 1814.347826 | AE7: =AE4 -> 159.91 | AF7: 2901.323609 | AG7: =dobandaLegala(AF3,C30,AF7) -> 1280.936957 | AH7: 1755.047619 | AI7: =AI4 -> 159.82 | AJ7: 2804.917105 | AK7: =dobandaLegala(AJ3,C30,AJ7) -> 1238.373399 | AL7: 1848 | AM7: =AM4 -> 159.68 | AN7: 2950.8864 | AO7: =dobandaLegala(AN3,C30,AN7) -> 1302.818973 | AP7: 1762.869565 | AQ7: =AQ4 -> 159 | AR7: 2802.962609 | AS7: =dobandaLegala(AR3,C30,AR7) -> 1237.510488 | AT7: 1848 | AU7: =AU4 -> 158.64 | AV7: 2931.6672 | AW7: =dobandaLegala(AV3,C30,AV7) -> 1294.333679 | AX7: 1730.8 | AY7: =AY4 -> 157.97 | AZ7: 2734.14476 | BA7: =dobandaLegala(AZ3,C30,AZ7) -> 1207.127346 | BB7: 21713.93895 | BC7: 34733.88298 | BD7: 13019.94403 | BE7: 15335.04026
C8: DASCALU | D8: DUMITRITA | E8: 2791229312975 | F8: 0 | G8: =G4 -> 162.99 | H8: 0 | I8: =dobandaLegala(H3,C30,H8) -> 0 | J8: 0 | K8: =K4 -> 161.72 | L8: 0 | M8: =dobandaLegala(L3,C30,L8) -> 0 | N8: 0 | O8: =O4 -> 160.92 | P8: 0 | Q8: =dobandaLegala(P3,C30,P8) -> 0 | R8: 0 | S8: =S4 -> 159.94 | T8: 0 | U8: =dobandaLegala(T3,C30,T8) -> 0 | V8: 0 | W8: =W4 -> 159.22 | X8: 0 | Y8: =dobandaLegala(X3,C30,X8) -> 0 | Z8: 0 | AA8: =AA4 -> 159.59 | AB8: 0 | AC8: =dobandaLegala(AB3,C30,AB8) -> 0 | AD8: 0 | AE8: =AE4 -> 159.91 | AF8: 0 | AG8: =dobandaLegala(AF3,C30,AF8) -> 0 | AH8: 0 | AI8: =AI4 -> 159.82 | AJ8: 0 | AK8: =dobandaLegala(AJ3,C30,AJ8) -> 0 | AL8: 0 | AM8: =AM4 -> 159.68 | AN8: 0 | AO8: =dobandaLegala(AN3,C30,AN8) -> 0 | AP8: 0 | AQ8: =AQ4 -> 159 | AR8: 0 | AS8: =dobandaLegala(AR3,C30,AR8) -> 0 | AT8: 1154.714286 | AU8: =AU4 -> 158.64 | AV8: 1831.838743 | AW8: =dobandaLegala(AV3,C30,AV8) -> 808.7584361 | AX8: 1605.85 | AY8: =AY4 -> 157.97 | AZ8: 2536.761245 | BA8: =dobandaLegala(AZ3,C30,AZ8) -> 1119.982348 | BB8: 2760.564286 | BC8: 4368.599988 | BD8: 1608.035702 | BE8: 1928.740784
C9: DRUS | D9: ELISABETA | E9: 2761209123136 | F9: 1465 | G9: =G4 -> 162.99 | H9: 2387.8035 | I9: =dobandaLegala(H3,C30,H9) -> 1054.217371 | J9: 1465 | K9: =K4 -> 161.72 | L9: 2369.198 | M9: =dobandaLegala(L3,C30,L9) -> 1046.003027 | N9: 627.8571429 | O9: =O4 -> 160.92 | P9: 1010.347714 | Q9: =dobandaLegala(P3,C30,P9) -> 446.0694155 | R9: 0 | S9: =S4 -> 159.94 | T9: 0 | U9: =dobandaLegala(T3,C30,T9) -> 0 | V9: 0 | W9: =W4 -> 159.22 | X9: 0 | Y9: =dobandaLegala(X3,C30,X9) -> 0 | Z9: 0 | AA9: =AA4 -> 159.59 | AB9: 0 | AC9: =dobandaLegala(AB3,C30,AB9) -> 0 | AD9: 0 | AE9: =AE4 -> 159.91 | AF9: 0 | AG9: =dobandaLegala(AF3,C30,AF9) -> 0 | AH9: 0 | AI9: =AI4 -> 159.82 | AJ9: 0 | AK9: =dobandaLegala(AJ3,C30,AJ9) -> 0 | AL9: 0 | AM9: =AM4 -> 159.68 | AN9: 0 | AO9: =dobandaLegala(AN3,C30,AN9) -> 0 | AP9: 0 | AQ9: =AQ4 -> 159 | AR9: 0 | AS9: =dobandaLegala(AR3,C30,AR9) -> 0 | AT9: 0 | AU9: =AU4 -> 158.64 | AV9: 0 | AW9: =dobandaLegala(AV3,C30,AV9) -> 0 | AX9: 0 | AY9: =AY4 -> 157.97 | AZ9: 0 | BA9: =dobandaLegala(AZ3,C30,AZ9) -> 0 | BB9: 3557.857143 | BC9: 5767.349214 | BD9: 2209.492071 | BE9: 2546.289813
C10: DURA | D10: NICOLAE | E10: 1751123012539 | F10: 1776.4 | G10: =G4 -> 162.99 | H10: 2895.35436 | I10: =dobandaLegala(H3,C30,H10) -> 1278.301528 | J10: 1795.8 | K10: =K4 -> 161.72 | L10: 2904.16776 | M10: =dobandaLegala(L3,C30,L10) -> 1282.192652 | N10: 1743.285714 | O10: =O4 -> 160.92 | P10: 2805.295371 | Q10: =dobandaLegala(P3,C30,P10) -> 1238.540404 | R10: 1834.6 | S10: =S4 -> 159.94 | T10: 2934.25924 | U10: =dobandaLegala(T3,C30,T10) -> 1295.478067 | V10: 1854 | W10: =W4 -> 159.22 | X10: 2951.9388 | Y10: =dobandaLegala(X3,C30,X10) -> 1303.283609 | Z10: 1812.789474 | AA10: =AA4 -> 159.59 | AB10: 2893.030721 | AC10: =dobandaLegala(AB3,C30,AB10) -> 1277.275639 | AD10: 1735.130435 | AE10: =AE4 -> 159.91 | AF10: 2774.647078 | AG10: =dobandaLegala(AF3,C30,AF10) -> 1225.009156 | AH10: 1780.190476 | AI10: =AI4 -> 159.82 | AJ10: 2845.100419 | AK10: =dobandaLegala(AJ3,C30,AJ10) -> 1256.114368 | AL10: 1817.095238 | AM10: =AM4 -> 159.68 | AN10: 2901.537676 | AO10: =dobandaLegala(AN3,C30,AN10) -> 1281.031468 | AP10: 1786.217391 | AQ10: =AQ4 -> 159 | AR10: 2840.085652 | AS10: =dobandaLegala(AR3,C30,AR10) -> 1253.900344 | AT10: 1854 | AU10: =AU4 -> 158.64 | AV10: 2941.1856 | AW10: =dobandaLegala(AV3,C30,AV10) -> 1298.536061 | AX10: 1834.6 | AY10: =AY4 -> 157.97 | AZ10: 2898.11762 | BA10: =dobandaLegala(AZ3,C30,AZ10) -> 1279.52151 | BB10: 21624.10873 | BC10: 34584.7203 | BD10: 12960.61157 | BE10: 15269.18481
C11: DUMITRAS | D11: CORNELIA | E11: 2860626060592 | F11: 62 | G11: =G4 -> 162.99 | H11: 101.0538 | I11: =dobandaLegala(H3,C30,H11) -> 44.61534268 | J11: 62 | K11: =K4 -> 161.72 | L11: 100.2664 | M11: =dobandaLegala(L3,C30,L11) -> 44.26770488 | N11: 60.42857143 | O11: =O4 -> 160.92 | P11: 97.24165714 | Q11: =dobandaLegala(P3,C30,P11) -> 42.93227821 | R11: 61.1 | S11: =S4 -> 159.94 | T11: 97.72334 | U11: =dobandaLegala(T3,C30,T11) -> 43.14494162 | V11: 53 | W11: =W4 -> 159.22 | X11: 84.3866 | Y11: =dobandaLegala(X3,C30,X11) -> 37.25675904 | Z11: 53 | AA11: =AA4 -> 159.59 | AB11: 84.5827 | AC11: =dobandaLegala(AB3,C30,AB11) -> 37.34333736 | AD11: 53 | AE11: =AE4 -> 159.91 | AF11: 84.7523 | AG11: =dobandaLegala(AF3,C30,AF11) -> 37.41821591 | AH11: 53 | AI11: =AI4 -> 159.82 | AJ11: 84.7046 | AK11: =dobandaLegala(AJ3,C30,AJ11) -> 37.39715632 | AL11: 0 | AM11: =AM4 -> 159.68 | AN11: 0 | AO11: =dobandaLegala(AN3,C30,AN11) -> 0 | AP11: 0 | AQ11: =AQ4 -> 159 | AR11: 0 | AS11: =dobandaLegala(AR3,C30,AR11) -> 0 | AT11: 0 | AU11: =AU4 -> 158.64 | AV11: 0 | AW11: =dobandaLegala(AV3,C30,AV11) -> 0 | AX11: 0 | AY11: =AY4 -> 157.97 | AZ11: 0 | BA11: =dobandaLegala(AZ3,C30,AZ11) -> 0 | BB11: 457.5285714 | BC11: 734.7113971 | BD11: 277.1828257 | BE11: 324.375736
C12: GALMATI | D12: RODICA | E12: 2620908120010 | F12: 1828.3 | G12: =G4 -> 162.99 | H12: 2979.94617 | I12: =dobandaLegala(H3,C30,H12) -> 1315.648887 | J12: 1848 | K12: =K4 -> 161.72 | L12: 2988.5856 | M12: =dobandaLegala(L3,C30,L12) -> 1319.463203 | N12: 1848 | O12: =O4 -> 160.92 | P12: 2973.8016 | Q12: =dobandaLegala(P3,C30,P12) -> 1312.936054 | R12: 1808.6 | S12: =S4 -> 159.94 | T12: 2892.67484 | U12: =dobandaLegala(T3,C30,T12) -> 1277.118518 | V12: 1830.090909 | W12: =W4 -> 159.22 | X12: 2913.870745 | Y12: =dobandaLegala(X3,C30,X12) -> 1286.476529 | Z12: 1827.526316 | AA12: =AA4 -> 159.59 | AB12: 2916.549247 | AC12: =dobandaLegala(AB3,C30,AB12) -> 1287.65909 | AD12: 1762.869565 | AE12: =AE4 -> 159.91 | AF12: 2819.004722 | AG12: =dobandaLegala(AF3,C30,AF12) -> 1244.593095 | AH12: 1792.428571 | AI12: =AI4 -> 159.82 | AJ12: 2864.659343 | AK12: =dobandaLegala(AJ3,C30,AJ12) -> 1264.749651 | AL12: 1848 | AM12: =AM4 -> 159.68 | AN12: 2950.8864 | AO12: =dobandaLegala(AN3,C30,AN12) -> 1302.818973 | AP12: 1644.086957 | AQ12: =AQ4 -> 159 | AR12: 2614.098261 | AS12: =dobandaLegala(AR3,C30,AR12) -> 1154.12671 | AT12: 1662.095238 | AU12: =AU4 -> 158.64 | AV12: 2636.747886 | AW12: =dobandaLegala(AV3,C30,AV12) -> 1164.126539 | AX12: 1828.3 | AY12: =AY4 -> 157.97 | AZ12: 2888.16551 | BA12: =dobandaLegala(AZ3,C30,AZ12) -> 1275.127644 | BB12: 21528.29756 | BC12: 34438.99032 | BD12: 12910.69277 | BE12: 15204.84489
C13: ISCRU | D13: GABRIELA | E13: 2850608125788 | F13: 1862 | G13: =G4 -> 162.99 | H13: 3034.8738 | I13: =dobandaLegala(H3,C30,H13) -> 1339.899485 | J13: 1862 | K13: =K4 -> 161.72 | L13: 3011.2264 | M13: =dobandaLegala(L3,C30,L13) -> 1329.459137 | N13: 1862 | O13: =O4 -> 160.92 | P13: 2996.3304 | Q13: =dobandaLegala(P3,C30,P13) -> 1322.88254 | R13: 1823.7 | S13: =S4 -> 159.94 | T13: 2916.82578 | U13: =dobandaLegala(T3,C30,T13) -> 1287.781179 | V13: 1791.636364 | W13: =W4 -> 159.22 | X13: 2852.643418 | Y13: =dobandaLegala(X3,C30,X13) -> 1259.444609 | Z13: 1760.052632 | AA13: =AA4 -> 159.59 | AB13: 2808.867995 | AC13: =dobandaLegala(AB3,C30,AB13) -> 1240.117721 | AD13: 1643.086957 | AE13: =AE4 -> 159.91 | AF13: 2627.460352 | AG13: =dobandaLegala(AF3,C30,AF13) -> 1160.026085 | AH13: 1825.47619 | AI13: =AI4 -> 159.82 | AJ13: 2917.476048 | AK13: =dobandaLegala(AJ3,C30,AJ13) -> 1288.068273 | AL13: 1843.238095 | AM13: =AM4 -> 159.68 | AN13: 2943.28259 | AO13: =dobandaLegala(AN3,C30,AN13) -> 1299.461884 | AP13: 1659.695652 | AQ13: =AQ4 -> 159 | AR13: 2638.916087 | AS13: =dobandaLegala(AR3,C30,AR13) -> 1165.083802 | AT13: 1566.809524 | AU13: =AU4 -> 158.64 | AV13: 2485.586629 | AW13: =dobandaLegala(AV3,C30,AV13) -> 1097.38871 | AX13: 1862 | AY13: =AY4 -> 157.97 | AZ13: 2941.4014 | BA13: =dobandaLegala(AZ3,C30,AZ13) -> 1298.631337 | BB13: 21361.69541 | BC13: 34174.8909 | BD13: 12813.19549 | BE13: 15088.24476
C14: MALSCHI FLORIAN | D14: BIANCA | E14: 2800328311458 | F14: 1842.85 | G14: =G4 -> 162.99 | H14: 3003.661215 | I14: =dobandaLegala(H3,C30,H14) -> 1326.119101 | J14: 1706.8 | K14: =K4 -> 161.72 | L14: 2760.23696 | M14: =dobandaLegala(L3,C30,L14) -> 1218.647076 | N14: 1677.380952 | O14: =O4 -> 160.92 | P14: 2699.241429 | Q14: =dobandaLegala(P3,C30,P14) -> 1191.717494 | R14: 1823.7 | S14: =S4 -> 159.94 | T14: 2916.82578 | U14: =dobandaLegala(T3,C30,T14) -> 1287.781179 | V14: 1844.409091 | W14: =W4 -> 159.22 | X14: 2936.668155 | Y14: =dobandaLegala(X3,C30,X14) -> 1296.541605 | Z14: 1821.421053 | AA14: =AA4 -> 159.59 | AB14: 2906.805858 | AC14: =dobandaLegala(AB3,C30,AB14) -> 1283.357375 | AD14: 1828.782609 | AE14: =AE4 -> 159.91 | AF14: 2924.40627 | AG14: =dobandaLegala(AF3,C30,AF14) -> 1291.127972 | AH14: 1732.666667 | AI14: =AI4 -> 159.82 | AJ14: 2769.147867 | AK14: =dobandaLegala(AJ3,C30,AJ14) -> 1222.581249 | AL14: 1825.47619 | AM14: =AM4 -> 159.68 | AN14: 2914.920381 | AO14: =dobandaLegala(AN3,C30,AN14) -> 1286.939944 | AP14: 1727.130435 | AQ14: =AQ4 -> 159 | AR14: 2746.137391 | AS14: =dobandaLegala(AR3,C30,AR14) -> 1212.422103 | AT14: 1806.714286 | AU14: =AU4 -> 158.64 | AV14: 2866.171543 | AW14: =dobandaLegala(AV3,C30,AV14) -> 1265.417288 | AX14: 1533.45 | AY14: =AY4 -> 157.97 | AZ14: 2422.390965 | BA14: =dobandaLegala(AZ3,C30,AZ14) -> 1069.487768 | BB14: 21170.78128 | BC14: 33866.61381 | BD14: 12695.83253 | BE14: 14952.14015
C15: MURESIANU MELEAN | D15: AURELIA | E15: 2821021063371 | F15: 0 | G15: =G4 -> 162.99 | H15: 0 | I15: =dobandaLegala(H3,C30,H15) -> 0 | J15: 423.5 | K15: =K4 -> 161.72 | L15: 684.8842 | M15: =dobandaLegala(L3,C30,L15) -> 302.3769841 | N15: 1632.428571 | O15: =O4 -> 160.92 | P15: 2626.904057 | Q15: =dobandaLegala(P3,C30,P15) -> 1159.78048 | R15: 1673.7 | S15: =S4 -> 159.94 | T15: 2676.91578 | U15: =dobandaLegala(T3,C30,T15) -> 1181.8607 | V15: 1675.818182 | W15: =W4 -> 159.22 | X15: 2668.237709 | Y15: =dobandaLegala(X3,C30,X15) -> 1178.029324 | Z15: 1696 | AA15: =AA4 -> 159.59 | AB15: 2706.6464 | AC15: =dobandaLegala(AB3,C30,AB15) -> 1194.986796 | AD15: 1696 | AE15: =AE4 -> 159.91 | AF15: 2712.0736 | AG15: =dobandaLegala(AF3,C30,AF15) -> 1197.382909 | AH15: 1643.190476 | AI15: =AI4 -> 159.82 | AJ15: 2626.147019 | AK15: =dobandaLegala(AJ3,C30,AJ15) -> 1159.446247 | AL15: 1622.666667 | AM15: =AM4 -> 159.68 | AN15: 2591.074133 | AO15: =dobandaLegala(AN3,C30,AN15) -> 1143.961537 | AP15: 1667.173913 | AQ15: =AQ4 -> 159 | AR15: 2650.806522 | AS15: =dobandaLegala(AR3,C30,AR15) -> 1170.33344 | AT15: 1696 | AU15: =AU4 -> 158.64 | AV15: 2690.5344 | AW15: =dobandaLegala(AV3,C30,AV15) -> 1187.873333 | AX15: 1662.55 | AY15: =AY4 -> 157.97 | AZ15: 2626.330235 | BA15: =dobandaLegala(AZ3,C30,AZ15) -> 1159.527137 | BB15: 17089.02781 | BC15: 27260.55406 | BD15: 10171.52625 | BE15: 12035.55889
C16: POP | D16: IOANA | E16: 2590712120697 | F16: 1848 | G16: =G4 -> 162.99 | H16: 3012.0552 | I16: =dobandaLegala(H3,C30,H16) -> 1329.825053 | J16: 1848 | K16: =K4 -> 161.72 | L16: 2988.5856 | M16: =dobandaLegala(L3,C30,L16) -> 1319.463203 | N16: 1680.285714 | O16: =O4 -> 160.92 | P16: 2703.915771 | Q16: =dobandaLegala(P3,C30,P16) -> 1193.781221 | R16: 1750.5 | S16: =S4 -> 159.94 | T16: 2799.7497 | U16: =dobandaLegala(T3,C30,T16) -> 1236.091985 | V16: 1848 | W16: =W4 -> 159.22 | X16: 2942.3856 | Y16: =dobandaLegala(X3,C30,X16) -> 1299.065862 | Z16: 1848 | AA16: =AA4 -> 159.59 | AB16: 2949.2232 | AC16: =dobandaLegala(AB3,C30,AB16) -> 1302.084669 | AD16: 1848 | AE16: =AE4 -> 159.91 | AF16: 2955.1368 | AG16: =dobandaLegala(AF3,C30,AF16) -> 1304.695528 | AH16: 1848 | AI16: =AI4 -> 159.82 | AJ16: 2953.4736 | AK16: =dobandaLegala(AJ3,C30,AJ16) -> 1303.961224 | AL16: 1755.047619 | AM16: =AM4 -> 159.68 | AN16: 2802.460038 | AO16: =dobandaLegala(AN3,C30,AN16) -> 1237.288602 | AP16: 1694.565217 | AQ16: =AQ4 -> 159 | AR16: 2694.358696 | AS16: =dobandaLegala(AR3,C30,AR16) -> 1189.561763 | AT16: 1624.714286 | AU16: =AU4 -> 158.64 | AV16: 2577.446743 | AW16: =dobandaLegala(AV3,C30,AV16) -> 1137.945032 | AX16: 1848 | AY16: =AY4 -> 157.97 | AZ16: 2919.2856 | BA16: =dobandaLegala(AZ3,C30,AZ16) -> 1288.867192 | BB16: 21441.11284 | BC16: 34298.07655 | BD16: 12856.96371 | BE16: 15142.63134
C17: RUSU | D17: IOANA | E17: 2781212060787 | F17: 1743.7 | G17: =G4 -> 162.99 | H17: 2842.05663 | I17: =dobandaLegala(H3,C30,H17) -> 1254.770533 | J17: 1687.25 | K17: =K4 -> 161.72 | L17: 2728.6207 | M17: =dobandaLegala(L3,C30,L17) -> 1204.688469 | N17: 1781 | O17: =O4 -> 160.92 | P17: 2865.9852 | Q17: =dobandaLegala(P3,C30,P17) -> 1265.335018 | R17: 1706.4 | S17: =S4 -> 159.94 | T17: 2729.21616 | U17: =dobandaLegala(T3,C30,T17) -> 1204.951365 | V17: 1746.818182 | W17: =W4 -> 159.22 | X17: 2781.283909 | Y17: =dobandaLegala(X3,C30,X17) -> 1227.939322 | Z17: 1761.210526 | AA17: =AA4 -> 159.59 | AB17: 2810.715879 | AC17: =dobandaLegala(AB3,C30,AB17) -> 1240.933563 | AD17: 1748.782609 | AE17: =AE4 -> 159.91 | AF17: 2796.47827 | AG17: =dobandaLegala(AF3,C30,AF17) -> 1234.647646 | AH17: 1637.904762 | AI17: =AI4 -> 159.82 | AJ17: 2617.69939 | AK17: =dobandaLegala(AJ3,C30,AJ17) -> 1155.716612 | AL17: 1692.190476 | AM17: =AM4 -> 159.68 | AN17: 2702.089752 | AO17: =dobandaLegala(AN3,C30,AN17) -> 1192.975032 | AP17: 1764.391304 | AQ17: =AQ4 -> 159 | AR17: 2805.382174 | AS17: =dobandaLegala(AR3,C30,AR17) -> 1238.578728 | AT17: 1781 | AU17: =AU4 -> 158.64 | AV17: 2825.3784 | AW17: =dobandaLegala(AV3,C30,AV17) -> 1247.407079 | AX17: 1743.7 | AY17: =AY4 -> 157.97 | AZ17: 2754.52289 | BA17: =dobandaLegala(AZ3,C30,AZ17) -> 1216.124309 | BB17: 20794.34786 | BC17: 33259.42935 | BD17: 12465.0815 | BE17: 14684.06767
C18: SAVAN | D18: GABRIELA | E18: 2680224123132 | F18: 1808.6 | G18: =G4 -> 162.99 | H18: 2947.83714 | I18: =dobandaLegala(H3,C30,H18) -> 1301.472722 | J18: 1848 | K18: =K4 -> 161.72 | L18: 2988.5856 | M18: =dobandaLegala(L3,C30,L18) -> 1319.463203 | N18: 1848 | O18: =O4 -> 160.92 | P18: 2973.8016 | Q18: =dobandaLegala(P3,C30,P18) -> 1312.936054 | R18: 1750.5 | S18: =S4 -> 159.94 | T18: 2799.7497 | U18: =dobandaLegala(T3,C30,T18) -> 1236.091985 | V18: 1848 | W18: =W4 -> 159.22 | X18: 2942.3856 | Y18: =dobandaLegala(X3,C30,X18) -> 1299.065862 | Z18: 1848 | AA18: =AA4 -> 159.59 | AB18: 2949.2232 | AC18: =dobandaLegala(AB3,C30,AB18) -> 1302.084669 | AD18: 1831.173913 | AE18: =AE4 -> 159.91 | AF18: 2928.230204 | AG18: =dobandaLegala(AF3,C30,AF18) -> 1292.816243 | AH18: 1773.238095 | AI18: =AI4 -> 159.82 | AJ18: 2833.989124 | AK18: =dobandaLegala(AJ3,C30,AJ18) -> 1251.208722 | AL18: 1848 | AM18: =AM4 -> 159.68 | AN18: 2950.8864 | AO18: =dobandaLegala(AN3,C30,AN18) -> 1302.818973 | AP18: 1712.391304 | AQ18: =AQ4 -> 159 | AR18: 2722.702174 | AS18: =dobandaLegala(AR3,C30,AR18) -> 1202.075434 | AT18: 1829.809524 | AU18: =AU4 -> 158.64 | AV18: 2902.809829 | AW18: =dobandaLegala(AV3,C30,AV18) -> 1281.593124 | AX18: 1788.9 | AY18: =AY4 -> 157.97 | AZ18: 2825.92533 | BA18: =dobandaLegala(AZ3,C30,AZ18) -> 1247.648549 | BB18: 21734.61284 | BC18: 34766.1259 | BD18: 13031.51306 | BE18: 15349.27554
C19: SZABO | D19: DANIELA | E19: 2650822120702 | F19: 1808.6 | G19: =G4 -> 162.99 | H19: 2947.83714 | I19: =dobandaLegala(H3,C30,H19) -> 1301.472722 | J19: 1848 | K19: =K4 -> 161.72 | L19: 2988.5856 | M19: =dobandaLegala(L3,C30,L19) -> 1319.463203 | N19: 1735.857143 | O19: =O4 -> 160.92 | P19: 2793.341314 | Q19: =dobandaLegala(P3,C30,P19) -> 1233.262677 | R19: 1788.9 | S19: =S4 -> 159.94 | T19: 2861.16666 | U19: =dobandaLegala(T3,C30,T19) -> 1263.207628 | V19: 1599.272727 | W19: =W4 -> 159.22 | X19: 2546.362036 | Y19: =dobandaLegala(X3,C30,X19) -> 1124.221106 | Z19: 1848 | AA19: =AA4 -> 159.59 | AB19: 2949.2232 | AC19: =dobandaLegala(AB3,C30,AB19) -> 1302.084669 | AD19: 1831.173913 | AE19: =AE4 -> 159.91 | AF19: 2928.230204 | AG19: =dobandaLegala(AF3,C30,AF19) -> 1292.816243 | AH19: 1848 | AI19: =AI4 -> 159.82 | AJ19: 2953.4736 | AK19: =dobandaLegala(AJ3,C30,AJ19) -> 1303.961224 | AL19: 1810.619048 | AM19: =AM4 -> 159.68 | AN19: 2891.196495 | AO19: =dobandaLegala(AN3,C30,AN19) -> 1276.465827 | AP19: 1762.869565 | AQ19: =AQ4 -> 159 | AR19: 2802.962609 | AS19: =dobandaLegala(AR3,C30,AR19) -> 1237.510488 | AT19: 1810.619048 | AU19: =AU4 -> 158.64 | AV19: 2872.366057 | AW19: =dobandaLegala(AV3,C30,AV19) -> 1268.152172 | AX19: 1711.1 | AY19: =AY4 -> 157.97 | AZ19: 2703.02467 | BA19: =dobandaLegala(AZ3,C30,AZ19) -> 1193.387799 | BB19: 21403.01144 | BC19: 34237.76959 | BD19: 12834.75814 | BE19: 15116.00576
C20: SABAU | D20: CORINA | E20: 2810906125799 | F20: 1552.6 | G20: =G4 -> 162.99 | H20: 2530.58274 | I20: =dobandaLegala(H3,C30,H20) -> 1117.254533 | J20: 1823.7 | K20: =K4 -> 161.72 | L20: 2949.28764 | M20: =dobandaLegala(L3,C30,L20) -> 1302.113119 | N20: 1862 | O20: =O4 -> 160.92 | P20: 2996.3304 | Q20: =dobandaLegala(P3,C30,P20) -> 1322.88254 | R20: 1862 | S20: =S4 -> 159.94 | T20: 2978.0828 | U20: =dobandaLegala(T3,C30,T20) -> 1314.826208 | V20: 1844.409091 | W20: =W4 -> 159.22 | X20: 2936.668155 | Y20: =dobandaLegala(X3,C30,X20) -> 1296.541605 | Z20: 1617.526316 | AA20: =AA4 -> 159.59 | AB20: 2581.410247 | AC20: =dobandaLegala(AB3,C30,AB20) -> 1139.694923 | AD20: 1743.73913 | AE20: =AE4 -> 159.91 | AF20: 2788.413243 | AG20: =dobandaLegala(AF3,C30,AF20) -> 1231.08693 | AH20: 1862 | AI20: =AI4 -> 159.82 | AJ20: 2975.8484 | AK20: =dobandaLegala(AJ3,C30,AJ20) -> 1313.839718 | AL20: 1549.047619 | AM20: =AM4 -> 159.68 | AN20: 2473.519238 | AO20: =dobandaLegala(AN3,C30,AN20) -> 1092.060946 | AP20: 1589.043478 | AQ20: =AQ4 -> 159 | AR20: 2526.57913 | AS20: =dobandaLegala(AR3,C30,AR20) -> 1115.486936 | AT20: 1664.095238 | AU20: =AU4 -> 158.64 | AV20: 2639.920686 | AW20: =dobandaLegala(AV3,C30,AV20) -> 1165.527333 | AX20: 1685 | AY20: =AY4 -> 157.97 | AZ20: 2661.7945 | BA20: =dobandaLegala(AZ3,C30,AZ20) -> 1175.184642 | BB20: 20655.16087 | BC20: 33038.43718 | BD20: 12383.27631 | BE20: 14586.49943
C21: SOCACIU | D21: ADINA | E21: 2700613311250 | F21: 2363.4 | G21: =G4 -> 162.99 | H21: 3852.10566 | I21: =dobandaLegala(H3,C30,H21) -> 1700.708079 | J21: 2467 | K21: =K4 -> 161.72 | L21: 3989.6324 | M21: =dobandaLegala(L3,C30,L21) -> 1761.426257 | N21: 2467 | O21: =O4 -> 160.92 | P21: 3969.8964 | Q21: =dobandaLegala(P3,C30,P21) -> 1752.712795 | R21: 2389.3 | S21: =S4 -> 159.94 | T21: 3821.44642 | U21: =dobandaLegala(T3,C30,T21) -> 1687.171997 | V21: 2396.818182 | W21: =W4 -> 159.22 | X21: 3816.213909 | Y21: =dobandaLegala(X3,C30,X21) -> 1684.861839 | Z21: 2413.052632 | AA21: =AA4 -> 159.59 | AB21: 3850.990695 | AC21: =dobandaLegala(AB3,C30,AB21) -> 1700.215821 | AD21: 2373.826087 | AE21: =AE4 -> 159.91 | AF21: 3795.985296 | AG21: =dobandaLegala(AF3,C30,AF21) -> 1675.930888 | AH21: 2294.333333 | AI21: =AI4 -> 159.82 | AJ21: 3666.803533 | AK21: =dobandaLegala(AJ3,C30,AJ21) -> 1618.897025 | AL21: 2417.666667 | AM21: =AM4 -> 159.68 | AN21: 3860.530133 | AO21: =dobandaLegala(AN3,C30,AN21) -> 1704.427491 | AP21: 2376.826087 | AQ21: =AQ4 -> 159 | AR21: 3779.153478 | AS21: =dobandaLegala(AR3,C30,AR21) -> 1668.499626 | AT21: 2417.666667 | AU21: =AU4 -> 158.64 | AV21: 3835.3864 | AW21: =dobandaLegala(AV3,C30,AV21) -> 1693.326511 | AX21: 2363.4 | AY21: =AY4 -> 157.97 | AZ21: 3733.46298 | BA21: =dobandaLegala(AZ3,C30,AZ21) -> 1648.32723 | BB21: 28740.28965 | BC21: 45971.6073 | BD21: 17231.31765 | BE21: 20296.50556
C22: SONIA | D22: ALINA | E22: 2850601124242 | F22: 122.75 | G22: =G4 -> 162.99 | H22: 200.070225 | I22: =dobandaLegala(H3,C30,H22) -> 88.33118248 | J22: 122.75 | K22: =K4 -> 161.72 | L22: 198.5113 | M22: =dobandaLegala(L3,C30,L22) -> 87.64291571 | N22: 126.6666667 | O22: =O4 -> 160.92 | P22: 203.832 | Q22: =dobandaLegala(P3,C30,P22) -> 89.99200949 | R22: 126.55 | S22: =S4 -> 159.94 | T22: 202.40407 | U22: =dobandaLegala(T3,C30,T22) -> 89.36157713 | V22: -58 | W22: =W4 -> 159.22 | X22: -92.3476 | Y22: =dobandaLegala(X3,C30,X22) -> -40.77154763 | Z22: -39.36842105 | AA22: =AA4 -> 159.59 | AB22: -62.82806316 | AC22: =dobandaLegala(AB3,C30,AB22) -> -27.73864583 | AD22: 17.08695652 | AE22: =AE4 -> 159.91 | AF22: 27.32375217 | AG22: =dobandaLegala(AF3,C30,AF22) -> 12.06346091 | AH22: 1566.190476 | AI22: =AI4 -> 159.82 | AJ22: 2503.085619 | AK22: =dobandaLegala(AJ3,C30,AJ22) -> 1105.11453 | AL22: 1566.190476 | AM22: =AM4 -> 159.68 | AN22: 2500.892952 | AO22: =dobandaLegala(AN3,C30,AN22) -> 1104.146465 | AP22: 1617 | AQ22: =AQ4 -> 159 | AR22: 2571.03 | AS22: =dobandaLegala(AR3,C30,AR22) -> 1135.112034 | AT22: 1617 | AU22: =AU4 -> 158.64 | AV22: 2565.2088 | AW22: =dobandaLegala(AV3,C30,AV22) -> 1132.541969 | AX22: 1595.7 | AY22: =AY4 -> 157.97 | AZ22: 2520.72729 | BA22: =dobandaLegala(AZ3,C30,AZ22) -> 1112.903343 | BB22: 8380.516155 | BC22: 13337.91035 | BD22: 4957.394191 | BE22: 5888.699294
C23: STANCA | D23: LIGIA | E23: 2790505126207 | F23: 1854 | G23: =G4 -> 162.99 | H23: 3021.8346 | I23: =dobandaLegala(H3,C30,H23) -> 1334.142667 | J23: 1757 | K23: =K4 -> 161.72 | L23: 2841.4204 | M23: =dobandaLegala(L3,C30,L23) -> 1254.489637 | N23: 1854 | O23: =O4 -> 160.92 | P23: 2983.4568 | Q23: =dobandaLegala(P3,C30,P23) -> 1317.198834 | R23: 1834.6 | S23: =S4 -> 159.94 | T23: 2934.25924 | U23: =dobandaLegala(T3,C30,T23) -> 1295.478067 | V23: 1854 | W23: =W4 -> 159.22 | X23: 2951.9388 | Y23: =dobandaLegala(X3,C30,X23) -> 1303.283609 | Z23: 1854 | AA23: =AA4 -> 159.59 | AB23: 2958.7986 | AC23: =dobandaLegala(AB3,C30,AB23) -> 1306.312216 | AD23: 1802.913043 | AE23: =AE4 -> 159.91 | AF23: 2883.038248 | AG23: =dobandaLegala(AF3,C30,AF23) -> 1272.863954 | AH23: 1650.52381 | AI23: =AI4 -> 159.82 | AJ23: 2637.867152 | AK23: =dobandaLegala(AJ3,C30,AJ23) -> 1164.620697 | AL23: 1854 | AM23: =AM4 -> 159.68 | AN23: 2960.4672 | AO23: =dobandaLegala(AN3,C30,AN23) -> 1307.048905 | AP23: 1837.304348 | AQ23: =AQ4 -> 159 | AR23: 2921.313913 | AS23: =dobandaLegala(AR3,C30,AR23) -> 1289.762694 | AT23: 1854 | AU23: =AU4 -> 158.64 | AV23: 2941.1856 | AW23: =dobandaLegala(AV3,C30,AV23) -> 1298.536061 | AX23: 1718.2 | AY23: =AY4 -> 157.97 | AZ23: 2714.24054 | BA23: =dobandaLegala(AZ3,C30,AZ23) -> 1198.339615 | BB23: 21724.5412 | BC23: 34749.82109 | BD23: 13025.27989 | BE23: 15342.07695
C24: TINTELECAN | D24: ROMINA | E24: 2870519125471 | F24: 537.8 | G24: =G4 -> 162.99 | H24: 876.56022 | I24: =dobandaLegala(H3,C30,H24) -> 387.0021176 | J24: 554 | K24: =K4 -> 161.72 | L24: 895.9288 | M24: =dobandaLegala(L3,C30,L24) -> 395.5533629 | N24: 554 | O24: =O4 -> 160.92 | P24: 891.4968 | Q24: =dobandaLegala(P3,C30,P24) -> 393.596631 | R24: 550.2 | S24: =S4 -> 159.94 | T24: 879.98988 | U24: =dobandaLegala(T3,C30,T24) -> 388.5163156 | V24: 554 | W24: =W4 -> 159.22 | X24: 882.0788 | Y24: =dobandaLegala(X3,C30,X24) -> 389.4385756 | Z24: 541.1578947 | AA24: =AA4 -> 159.59 | AB24: 863.6338842 | AC24: =dobandaLegala(AB3,C30,AB24) -> 381.2951289 | AD24: 518.4347826 | AE24: =AE4 -> 159.91 | AF24: 829.0290609 | AG24: =dobandaLegala(AF3,C30,AF24) -> 366.0170686 | AH24: 1480 | AI24: =AI4 -> 159.82 | AJ24: 2365.336 | AK24: =dobandaLegala(AJ3,C30,AJ24) -> 1044.29795 | AL24: 1443.047619 | AM24: =AM4 -> 159.68 | AN24: 2304.258438 | AO24: =dobandaLegala(AN3,C30,AN24) -> 1017.332152 | AP24: 1472.086957 | AQ24: =AQ4 -> 159 | AR24: 2340.618261 | AS24: =dobandaLegala(AR3,C30,AR24) -> 1033.385046 | AT24: 1397.857143 | AU24: =AU4 -> 158.64 | AV24: 2217.560571 | AW24: =dobandaLegala(AV3,C30,AV24) -> 979.0549668 | AX24: 1460.7 | AY24: =AY4 -> 157.97 | AZ24: 2307.46779 | BA24: =dobandaLegala(AZ3,C30,AZ24) -> 1018.749084 | BB24: 11063.2844 | BC24: 17653.95851 | BD24: 6590.67411 | BE24: 7794.238399
C25: ULIESAN | D25: DUMITRU | E25: 1600909120701 | F25: 1808.6 | G25: =G4 -> 162.99 | H25: 2947.83714 | I25: =dobandaLegala(H3,C30,H25) -> 1301.472722 | J25: 1848 | K25: =K4 -> 161.72 | L25: 2988.5856 | M25: =dobandaLegala(L3,C30,L25) -> 1319.463203 | N25: 1829.809524 | O25: =O4 -> 160.92 | P25: 2944.529486 | Q25: =dobandaLegala(P3,C30,P25) -> 1300.01239 | R25: 1652 | S25: =S4 -> 159.94 | T25: 2642.2088 | U25: =dobandaLegala(T3,C30,T25) -> 1166.537538 | V25: 1812.181818 | W25: =W4 -> 159.22 | X25: 2885.355891 | Y25: =dobandaLegala(X3,C30,X25) -> 1273.887195 | Z25: 1848 | AA25: =AA4 -> 159.59 | AB25: 2949.2232 | AC25: =dobandaLegala(AB3,C30,AB25) -> 1302.084669 | AD25: 1848 | AE25: =AE4 -> 159.91 | AF25: 2955.1368 | AG25: =dobandaLegala(AF3,C30,AF25) -> 1304.695528 | AH25: 1810.619048 | AI25: =AI4 -> 159.82 | AJ25: 2893.731362 | AK25: =dobandaLegala(AJ3,C30,AJ25) -> 1277.584973 | AL25: 1829.809524 | AM25: =AM4 -> 159.68 | AN25: 2921.839848 | AO25: =dobandaLegala(AN3,C30,AN25) -> 1289.994894 | AP25: 1831.173913 | AQ25: =AQ4 -> 159 | AR25: 2911.566522 | AS25: =dobandaLegala(AR3,C30,AR25) -> 1285.459212 | AT25: 1848 | AU25: =AU4 -> 158.64 | AV25: 2931.6672 | AW25: =dobandaLegala(AV3,C30,AV25) -> 1294.333679 | AX25: 1554.5 | AY25: =AY4 -> 157.97 | AZ25: 2455.64365 | BA25: =dobandaLegala(AZ3,C30,AZ25) -> 1084.168858 | BB25: 21520.69383 | BC25: 34427.3255 | BD25: 12906.63167 | BE25: 15199.69486
C26: VERMESAN | D26: ALEXANDRA | E26: 2610301125176 | F26: 1848 | G26: =G4 -> 162.99 | H26: 3012.0552 | I26: =dobandaLegala(H3,C30,H26) -> 1329.825053 | J26: 1848 | K26: =K4 -> 161.72 | L26: 2988.5856 | M26: =dobandaLegala(L3,C30,L26) -> 1319.463203 | N26: 1810.619048 | O26: =O4 -> 160.92 | P26: 2913.648171 | Q26: =dobandaLegala(P3,C30,P26) -> 1286.378262 | R26: 1808.6 | S26: =S4 -> 159.94 | T26: 2892.67484 | U26: =dobandaLegala(T3,C30,T26) -> 1277.118518 | V26: 1830.090909 | W26: =W4 -> 159.22 | X26: 2913.870745 | Y26: =dobandaLegala(X3,C30,X26) -> 1286.476529 | Z26: 1744.631579 | AA26: =AA4 -> 159.59 | AB26: 2784.257537 | AC26: =dobandaLegala(AB3,C30,AB26) -> 1229.252182 | AD26: 1644.086957 | AE26: =AE4 -> 159.91 | AF26: 2629.059452 | AG26: =dobandaLegala(AF3,C30,AF26) -> 1160.732089 | AH26: 1810.619048 | AI26: =AI4 -> 159.82 | AJ26: 2893.731362 | AK26: =dobandaLegala(AJ3,C30,AJ26) -> 1277.584973 | AL26: 1900.7 | AM26: =AM4 -> 159.68 | AN26: 3035.03776 | AO26: =dobandaLegala(AN3,C30,AN26) -> 1339.971873 | AP26: 1831.173913 | AQ26: =AQ4 -> 159 | AR26: 2911.566522 | AS26: =dobandaLegala(AR3,C30,AR26) -> 1285.459212 | AT26: 1773.238095 | AU26: =AU4 -> 158.64 | AV26: 2813.064914 | AW26: =dobandaLegala(AV3,C30,AV26) -> 1241.970664 | AX26: 1750.5 | AY26: =AY4 -> 157.97 | AZ26: 2765.26485 | BA26: =dobandaLegala(AZ3,C30,AZ26) -> 1220.866893 | BB26: 21600.25955 | BC26: 34552.81695 | BD26: 12952.55741 | BE26: 15255.09945
BB27: =SUM(BB4:BB26) -> 420095.7173 | BD27: =SUM(BD4:BD26) -> 251734.5881 | BE27: =SUM(BE4:BE26) -> 296613.678
B30: Data stop calcul dobândă | C30: 2024-04-30
B31: Data stop inflație principal | C31: 2026-01-01

Sheet 2020
A2: Capitol bugetar / Sursă de finanţare | B2: Categorie personal | C2: Nume | D2: Prenume | E2: CNP | F2: ian | G2: IPC | H2: brut cu IPC | I2: Dobânda | J2: feb | K2: IPC | L2: brut cu IPC | M2: Dobânda | N2: mar | O2: IPC | P2: brut cu IPC | Q2: Dobânda | R2: apr | S2: IPC | T2: brut cu IPC | U2: Dobânda | V2: TOTAL BRUT | W2: total 2020 CU IPC | X2: IPC 2020 | Y2: Dobânda totală diferențe 2020
B3: Data start calcul dobândă | H3: 2020-02-01 | L3: 2020-03-01 | P3: 2020-04-01 | T3: 2020-05-01
C4: BELDEAN | D4: PAUL | E4: 1760425310761 | F4: 1345.6 | G4: 157.33 | H4: =F4*G4/100 -> 2117.03248 | I4: =dobandaLegala(H3,C30,H4) -> 934.6717249 | J4: 1345.6 | K4: 156.93 | L4: =J4*K4/100 -> 2111.65008 | M4: =dobandaLegala(L3,C30,L4) -> 932.2953906 | N4: 1365 | O4: 156.16 | P4: =N4*O4/100 -> 2131.584 | Q4: =dobandaLegala(P3,C30,P4) -> 941.096234 | R4: 1209.8 | S4: 155.76 | T4: =R4*S4/100 -> 1884.38448 | U4: =dobandaLegala(T3,C30,T4) -> 831.9574258 | V4: =F4+J4+N4+R4 -> 5266 | W4: =H4+L4+P4+T4 -> 8244.65104 | X4: =W4-V4 -> 2978.65104 | Y4: =I4+M4+Q4+U4 -> 3640.020775
C5: BUFTEA | D5: IZABELLA | E5: 2790919191322 | F5: 1137.85 | G5: =G4 -> 157.33 | H5: 1790.179405 | I5: =dobandaLegala(H3,C30,H5) -> 790.3658013 | J5: 1137.85 | K5: =K4 -> 156.93 | L5: 1785.628005 | M5: =dobandaLegala(L3,C30,L5) -> 788.3563542 | N5: 1138.409091 | O5: =O4 -> 156.16 | P5: 1777.739636 | Q5: =dobandaLegala(P3,C30,P5) -> 784.8736324 | R5: 1126.7 | S5: =S4 -> 155.76 | T5: 1754.94792 | U5: =dobandaLegala(T3,C30,T5) -> 774.8110693 | V5: =F5+J5+N5+R5 -> 4540.809091 | W5: =H5+L5+P5+T5 -> 7108.494966 | X5: =W5-V5 -> 2567.685875 | Y5: 3138.406857
C6: CAMPEAN | D6: ANCA | E6: 2680927120704 | F6: 1817 | G6: =G4 -> 157.33 | H6: 2858.6861 | I6: =dobandaLegala(H3,C30,H6) -> 1262.112459 | J6: 1817 | K6: =K4 -> 156.93 | L6: 2851.4181 | M6: =dobandaLegala(L3,C30,L6) -> 1258.90363 | N6: 1817 | O6: =O4 -> 156.16 | P6: 2837.4272 | Q6: =dobandaLegala(P3,C30,P6) -> 1252.726635 | R6: 1765.2 | S6: =S4 -> 155.76 | T6: 2749.47552 | U6: =dobandaLegala(T3,C30,T6) -> 1213.89589 | V6: 7216.2 | W6: 11297.00692 | X6: 4080.80692 | Y6: 4987.638614
C7: CRISTU | D7: GRETI | E7: 2630326120671 | F7: 1362 | G7: =G4 -> 157.33 | H7: 2142.8346 | I7: =dobandaLegala(H3,C30,H7) -> 946.0633839 | J7: 1322.6 | K7: =K4 -> 156.93 | L7: 2075.55618 | M7: =dobandaLegala(L3,C30,L7) -> 916.3599016 | N7: 1273.454545 | O7: =O4 -> 156.16 | P7: 1988.626618 | Q7: =dobandaLegala(P3,C30,P7) -> 877.9804226 | R7: 1244.8 | S7: =S4 -> 155.76 | T7: 1938.90048 | U7: =dobandaLegala(T3,C30,T7) -> 856.0262883 | V7: 5202.854545 | W7: 8145.917878 | X7: 2943.063333 | Y7: 3596.429996
C8: DASCALU | D8: DUMITRITA | E8: 2791229312975 | F8: 1085.1 | G8: =G4 -> 157.33 | H8: 1707.18783 | I8: =dobandaLegala(H3,C30,H8) -> 753.724947 | J8: 1095.25 | K8: =K4 -> 156.93 | L8: 1718.775825 | M8: =dobandaLegala(L3,C30,L8) -> 758.8410572 | N8: 0 | O8: =O4 -> 156.16 | P8: 0 | Q8: =dobandaLegala(P3,C30,P8) -> 0 | R8: 0 | S8: =S4 -> 155.76 | T8: 0 | U8: =dobandaLegala(T3,C30,T8) -> 0 | V8: 2180.35 | W8: 3425.963655 | X8: 1245.613655 | Y8: 1512.566004
C9: DRUS | D9: ELISABETA | E9: 2761209123136 | F9: 0 | G9: =G4 -> 157.33 | H9: 0 | I9: =dobandaLegala(H3,C30,H9) -> 0 | J9: 0 | K9: =K4 -> 156.93 | L9: 0 | M9: =dobandaLegala(L3,C30,L9) -> 0 | N9: 0 | O9: =O4 -> 156.16 | P9: 0 | Q9: =dobandaLegala(P3,C30,P9) -> 0 | R9: 0 | S9: =S4 -> 155.76 | T9: 0 | U9: =dobandaLegala(T3,C30,T9) -> 0 | V9: 0 | W9: 0 | X9: 0 | Y9: 0
C10: DURA | D10: NICOLAE | E10: 1751123012539 | F10: 1365 | G10: =G4 -> 157.33 | H10: 2147.5545 | I10: =dobandaLegala(H3,C30,H10) -> 948.147224 | J10: 1326.2 | K10: =K4 -> 156.93 | L10: 2081.20566 | M10: =dobandaLegala(L3,C30,L10) -> 918.854152 | N10: 1205.454545 | O10: =O4 -> 156.16 | P10: 1882.437818 | Q10: =dobandaLegala(P3,C30,P10) -> 831.0979729 | R10: 1229.2 | S10: =S4 -> 155.76 | T10: 1914.60192 | U10: =dobandaLegala(T3,C30,T10) -> 845.2984525 | V10: 5125.854545 | W10: 8025.799898 | X10: 2899.945353 | Y10: 3543.397801
C11: DUMITRAS | D11: CORNELIA | E11: 2860626060592 | F11: 0 | G11: =G4 -> 157.33 | H11: 0 | I11: =dobandaLegala(H3,C30,H11) -> 0 | J11: 0 | K11: =K4 -> 156.93 | L11: 0 | M11: =dobandaLegala(L3,C30,L11) -> 0 | N11: 0 | O11: =O4 -> 156.16 | P11: 0 | Q11: =dobandaLegala(P3,C30,P11) -> 0 | R11: 0 | S11: =S4 -> 155.76 | T11: 0 | U11: =dobandaLegala(T3,C30,T11) -> 0 | V11: 0 | W11: 0 | X11: 0 | Y11: 0
C12: GALMATI | D12: RODICA | E12: 2620908120010 | F12: 1362 | G12: =G4 -> 157.33 | H12: 2142.8346 | I12: =dobandaLegala(H3,C30,H12) -> 946.0633839 | J12: 1322.6 | K12: =K4 -> 156.93 | L12: 2075.55618 | M12: =dobandaLegala(L3,C30,L12) -> 916.3599016 | N12: 1362 | O12: =O4 -> 156.16 | P12: 2126.8992 | Q12: =dobandaLegala(P3,C30,P12) -> 939.0278906 | R12: 1264.5 | S12: =S4 -> 155.76 | T12: 1969.5852 | U12: =dobandaLegala(T3,C30,T12) -> 869.5736195 | V12: 5311.1 | W12: 8314.87518 | X12: 3003.77518 | Y12: 3671.024796
C13: ISCRU | D13: GABRIELA | E13: 2850608125788 | F13: 1370 | G13: =G4 -> 157.33 | H13: 2155.421 | I13: =dobandaLegala(H3,C30,H13) -> 951.6202907 | J13: 1370 | K13: =K4 -> 156.93 | L13: 2149.941 | M13: =dobandaLegala(L3,C30,L13) -> 949.2008658 | N13: 1246.863636 | O13: =O4 -> 156.16 | P13: 1947.102255 | Q13: =dobandaLegala(P3,C30,P13) -> 859.6473791 | R13: 1079.75 | S13: =S4 -> 155.76 | T13: 1681.8186 | U13: =dobandaLegala(T3,C30,T13) -> 742.5244094 | V13: 5066.613636 | W13: 7934.282855 | X13: 2867.669218 | Y13: 3502.992945
C14: MALSCHI FLORIAN | D14: BIANCA | E14: 2800328311458 | F14: 1331.7 | G14: =G4 -> 157.33 | H14: 2095.16361 | I14: =dobandaLegala(H3,C30,H14) -> 925.0165994 | J14: 1234.95 | K14: =K4 -> 156.93 | L14: 1938.007035 | M14: =dobandaLegala(L3,C30,L14) -> 855.6318316 | N14: 1053.363636 | O14: =O4 -> 156.16 | P14: 1644.932655 | Q14: =dobandaLegala(P3,C30,P14) -> 726.2392316 | R14: 1254.1 | S14: =S4 -> 155.76 | T14: 1953.38616 | U14: =dobandaLegala(T3,C30,T14) -> 862.421729 | V14: 4874.113636 | W14: 7631.48946 | X14: 2757.375823 | Y14: 3369.309392
C15: MURESIANU MELEAN | D15: AURELIA | E15: 2821021063371 | F15: 1204 | G15: =G4 -> 157.33 | H15: 1894.2532 | I15: =dobandaLegala(H3,C30,H15) -> 836.3144745 | J15: 1204 | K15: =K4 -> 156.93 | L15: 1889.4372 | M15: =dobandaLegala(L3,C30,L15) -> 834.1882062 | N15: 1103.090909 | O15: =O4 -> 156.16 | P15: 1722.586764 | Q15: =dobandaLegala(P3,C30,P15) -> 760.52359 | R15: 1027.6 | S15: =S4 -> 155.76 | T15: 1600.58976 | U15: =dobandaLegala(T3,C30,T15) -> 706.6618042 | V15: 4538.690909 | W15: 7106.866924 | X15: 2568.176015 | Y15: 3137.688075
C16: POP | D16: IOANA | E16: 2590712120697 | F16: 1362 | G16: =G4 -> 157.33 | H16: 2142.8346 | I16: =dobandaLegala(H3,C30,H16) -> 946.0633839 | J16: 1264.5 | K16: =K4 -> 156.93 | L16: 1984.37985 | M16: =dobandaLegala(L3,C30,L16) -> 876.1054707 | N16: 1326.181818 | O16: =O4 -> 156.16 | P16: 2070.965527 | Q16: =dobandaLegala(P3,C30,P16) -> 914.3331243 | R16: 1127.6 | S16: =S4 -> 155.76 | T16: 1756.34976 | U16: =dobandaLegala(T3,C30,T16) -> 775.4299829 | V16: 5080.281818 | W16: 7954.529737 | X16: 2874.247919 | Y16: 3511.931962
C17: RUSU | D17: IOANA | E17: 2781212060787 | F17: 1143.65 | G17: =G4 -> 157.33 | H17: 1799.304545 | I17: =dobandaLegala(H3,C30,H17) -> 794.3945587 | J17: 1292.85 | K17: =K4 -> 156.93 | L17: 2028.869505 | M17: =dobandaLegala(L3,C30,L17) -> 895.747693 | N17: 1158.681818 | O17: =O4 -> 156.16 | P17: 1809.397527 | Q17: =dobandaLegala(P3,C30,P17) -> 798.8506194 | R17: 1105.35 | S17: =S4 -> 155.76 | T17: 1721.69316 | U17: =dobandaLegala(T3,C30,T17) -> 760.1290632 | V17: 4700.531818 | W17: 7359.264737 | X17: 2658.732919 | Y17: 3249.121934
C18: SAVAN | D18: GABRIELA | E18: 2680224123132 | F18: 1362 | G18: =G4 -> 157.33 | H18: 2142.8346 | I18: =dobandaLegala(H3,C30,H18) -> 946.0633839 | J18: 1362 | K18: =K4 -> 156.93 | L18: 2137.3866 | M18: =dobandaLegala(L3,C30,L18) -> 943.6580871 | N18: 1255.545455 | O18: =O4 -> 156.16 | P18: 1960.659782 | Q18: =dobandaLegala(P3,C30,P18) -> 865.6330395 | R18: 990.7 | S18: =S4 -> 155.76 | T18: 1543.11432 | U18: =dobandaLegala(T3,C30,T18) -> 681.2863463 | V18: 4970.245455 | W18: 7783.995302 | X18: 2813.749847 | Y18: 3436.640857
C19: SZABO | D19: DANIELA | E19: 2650822120702 | F19: 1342.3 | G19: =G4 -> 157.33 | H19: 2111.84059 | I19: =dobandaLegala(H3,C30,H19) -> 932.3795009 | J19: 1342.3 | K19: =K4 -> 156.93 | L19: 2106.47139 | M19: =dobandaLegala(L3,C30,L19) -> 930.0089943 | N19: 1273.454545 | O19: =O4 -> 156.16 | P19: 1988.626618 | Q19: =dobandaLegala(P3,C30,P19) -> 877.9804226 | R19: 1244.8 | S19: =S4 -> 155.76 | T19: 1938.90048 | U19: =dobandaLegala(T3,C30,T19) -> 856.0262883 | V19: 5202.854545 | W19: 8145.839078 | X19: 2942.984533 | Y19: 3596.395206
C20: SABAU | D20: CORINA | E20: 2810906125799 | F20: 1184.6 | G20: =G4 -> 157.33 | H20: 1863.73118 | I20: =dobandaLegala(H3,C30,H20) -> 822.8389755 | J20: 1196 | K20: =K4 -> 156.93 | L20: 1876.8828 | M20: =dobandaLegala(L3,C30,L20) -> 828.6454274 | N20: 1116.181818 | O20: =O4 -> 156.16 | P20: 1743.029527 | Q20: =dobandaLegala(P3,C30,P20) -> 769.5490883 | R20: 1086 | S20: =S4 -> 155.76 | T20: 1691.5536 | U20: =dobandaLegala(T3,C30,T20) -> 746.8224206 | V20: 4582.781818 | W20: 7175.197107 | X20: 2592.415289 | Y20: 3167.855912
C21: SOCACIU | D21: ADINA | E21: 2700613311250 | F21: 1817 | G21: =G4 -> 157.33 | H21: 2858.6861 | I21: =dobandaLegala(H3,C30,H21) -> 1262.112459 | J21: 1817 | K21: =K4 -> 156.93 | L21: 2851.4181 | M21: =dobandaLegala(L3,C30,L21) -> 1258.90363 | N21: 1487.818182 | O21: =O4 -> 156.16 | P21: 2323.376873 | Q21: =dobandaLegala(P3,C30,P21) -> 1025.772958 | R21: 1739.3 | S21: =S4 -> 155.76 | T21: 2709.13368 | U21: =dobandaLegala(T3,C30,T21) -> 1196.084932 | V21: 6861.118182 | W21: 10742.61475 | X21: 3881.496571 | Y21: 4742.873979
C22: SONIA | D22: ALINA | E22: 2850601124242 | F22: 1085.1 | G22: =G4 -> 157.33 | H22: 1707.18783 | I22: =dobandaLegala(H3,C30,H22) -> 753.724947 | J22: 1148 | K22: =K4 -> 156.93 | L22: 1801.5564 | M22: =dobandaLegala(L3,C30,L22) -> 795.3887547 | N22: 1071.272727 | O22: =O4 -> 156.16 | P22: 1672.899491 | Q22: =dobandaLegala(P3,C30,P22) -> 738.5866148 | R22: 1021.2 | S22: =S4 -> 155.76 | T22: 1590.62112 | U22: =dobandaLegala(T3,C30,T22) -> 702.2606408 | V22: 4325.572727 | W22: 6772.264841 | X22: 2446.692114 | Y22: 2989.960957
C23: STANCA | D23: LIGIA | E23: 2790505126207 | F23: 1345.6 | G23: =G4 -> 157.33 | H23: 2117.03248 | I23: =dobandaLegala(H3,C30,H23) -> 934.6717249 | J23: 1345.6 | K23: =K4 -> 156.93 | L23: 2111.65008 | M23: =dobandaLegala(L3,C30,L23) -> 932.2953906 | N23: 1205.454545 | O23: =O4 -> 156.16 | P23: 1882.437818 | Q23: =dobandaLegala(P3,C30,P23) -> 831.0979729 | R23: 1209.8 | S23: =S4 -> 155.76 | T23: 1884.38448 | U23: =dobandaLegala(T3,C30,T23) -> 831.9574258 | V23: 5106.454545 | W23: 7995.504858 | X23: 2889.050313 | Y23: 3530.022514
C24: TINTELECAN | D24: ROMINA | E24: 2870519125471 | F24: 1051 | G24: =G4 -> 157.33 | H24: 1653.5383 | I24: =dobandaLegala(H3,C30,H24) -> 730.0386318 | J24: 1051 | K24: =K4 -> 156.93 | L24: 1649.3343 | M24: =dobandaLegala(L3,C30,L24) -> 728.182562 | N24: 954.5 | O24: =O4 -> 156.16 | P24: 1490.5472 | Q24: =dobandaLegala(P3,C30,P24) -> 658.077916 | R24: 896.6 | S24: =S4 -> 155.76 | T24: 1396.54416 | U24: =dobandaLegala(T3,C30,T24) -> 616.5754901 | V24: 3953.1 | W24: 6189.96396 | X24: 2236.86396 | Y24: 2732.8746
C25: ULIESAN | D25: DUMITRU | E25: 1600909120701 | F25: 1205.4 | G25: =G4 -> 157.33 | H25: 1896.45582 | I25: =dobandaLegala(H3,C30,H25) -> 837.2869332 | J25: 1342.3 | K25: =K4 -> 156.93 | L25: 2106.47139 | M25: =dobandaLegala(L3,C30,L25) -> 930.0089943 | N25: 1149.090909 | O25: =O4 -> 156.16 | P25: 1794.420364 | Q25: =dobandaLegala(P3,C30,P25) -> 792.2381883 | R25: 1362 | S25: =S4 -> 155.76 | T25: 2121.4512 | U25: =dobandaLegala(T3,C30,T25) -> 936.6225938 | V25: 5058.790909 | W25: 7918.798774 | X25: 2860.007865 | Y25: 3496.15671
C26: VERMESAN | D26: ALEXANDRA | E26: 2610301125176 | F26: 1342.3 | G26: =G4 -> 157.33 | H26: 2111.84059 | I26: =dobandaLegala(H3,C30,H26) -> 932.3795009 | J26: 1342.3 | K26: =K4 -> 156.93 | L26: 2106.47139 | M26: =dobandaLegala(L3,C30,L26) -> 930.0089943 | N26: 1237.636364 | O26: =O4 -> 156.16 | P26: 1932.692945 | Q26: =dobandaLegala(P3,C30,P26) -> 853.2856563 | R26: 1205.4 | S26: =S4 -> 155.76 | T26: 1877.53104 | U26: =dobandaLegala(T3,C30,T26) -> 828.9316259 | V26: 5127.636364 | W26: 8028.535965 | X26: 2900.899602 | Y26: 3544.605777
V27: =SUM(V4:V26) -> 104291.9545 | X27: =SUM(X4:X26) -> 59009.90334 | Y27: =SUM(Y4:Y26) -> 72097.91566
B30: Data stop calcul dobândă | C30: 2024-04-30
B31: Data stop inflație principal | C31: 2026-01-01

Sheet Calcule totale
A2: Dobândă totală
A5: Nume | B5: Prenume | C5: 2016 | D5: 2017 | E5: 2018 | F5: 2019 | G5: 2020 | H5: Total dobândă diminuat la 80%
A6: BELDEAN | B6: PAUL | C6: ='2016'!T4 -> 0 | D6: ='2017'!BE4 -> 8155.173916 | E6: ='2018'!BE4 -> 25149.80461 | F6: ='2019'!BE4 -> 15161.5777 | G6: ='2020'!Y4 -> 3640.020775 | H6: =SUM(C6:G6)*80/100 -> 41685.26161
A7: BUFTEA | B7: IZABELLA | C7: ='2016'!T5 -> 10.52649542 | D7: ='2017'!BE5 -> 2295.750408 | E7: ='2018'!BE5 -> 4416.421255 | F7: ='2019'!BE5 -> 13505.80731 | G7: ='2020'!Y5 -> 3138.406857 | H7: =SUM(C7:G7)*80/100 -> 18693.52986
A8: CAMPEAN | B8: ANCA | C8: ='2016'!T6 -> 785.9783248 | D8: ='2017'!BE6 -> 27606.72576 | E8: ='2018'!BE6 -> 34204.27058 | F8: ='2019'!BE6 -> 20607.07866 | G8: ='2020'!Y6 -> 4987.638614 | H8: 70553.35355
A9: CRISTU | B9: GRETI | C9: ='2016'!T7 -> 585.9749118 | D9: ='2017'!BE7 -> 20485.35139 | E9: ='2018'!BE7 -> 25730.50406 | F9: ='2019'!BE7 -> 15335.04026 | G9: ='2020'!Y7 -> 3596.429996 | H9: 52586.6405
A10: DASCALU | B10: DUMITRITA | C10: ='2016'!T8 -> 0 | D10: ='2017'!BE8 -> 2762.410721 | E10: ='2018'!BE8 -> 0 | F10: ='2019'!BE8 -> 1928.740784 | G10: ='2020'!Y8 -> 1512.566004 | H10: 4962.974008
A11: DRUS | B11: ELISABETA | C11: ='2016'!T9 -> 559.6586732 | D11: ='2017'!BE9 -> 19653.08172 | E11: ='2018'!BE9 -> 15459.59796 | F11: ='2019'!BE9 -> 2546.289813 | G11: ='2020'!Y9 -> 0 | H11: 30574.90254
A12: DURA | B12: NICOLAE | C12: ='2016'!T10 -> 559.6586732 | D12: ='2017'!BE10 -> 20133.42009 | E12: ='2018'!BE10 -> 25697.37833 | F12: ='2019'!BE10 -> 15269.18481 | G12: ='2020'!Y10 -> 3543.397801 | H12: 52162.43176
A13: DUMITRAS | B13: CORNELIA | C13: ='2016'!T11 -> 0 | D13: ='2017'!BE11 -> 0 | E13: ='2018'!BE11 -> 97.44363629 | F13: ='2019'!BE11 -> 324.375736 | G13: ='2020'!Y11 -> 0 | H13: 337.4554979
A14: GALMATI | B14: RODICA | C14: ='2016'!T12 -> 585.9749118 | D14: ='2017'!BE12 -> 20522.52556 | E14: ='2018'!BE12 -> 25830.88931 | F14: ='2019'!BE12 -> 15204.84489 | G14: ='2020'!Y12 -> 3671.024796 | H14: 52652.20758
A15: ISCRU | B15: GABRIELA | C15: ='2016'!T13 -> 10.52649542 | D15: ='2017'!BE13 -> 252.7782784 | E15: ='2018'!BE13 -> 2351.12601 | F15: ='2019'!BE13 -> 15088.24476 | G15: ='2020'!Y13 -> 3502.992945 | H15: 16964.53479
A16: MALSCHI FLORIAN | B16: BIANCA | C16: ='2016'!T14 -> 547.3777619 | D16: ='2017'!BE14 -> 19983.68186 | E16: ='2018'!BE14 -> 25579.61862 | F16: ='2019'!BE14 -> 14952.14015 | G16: ='2020'!Y14 -> 3369.309392 | H16: 51545.70223
A17: MURESIANU MELEAN | B17: AURELIA | C17: ='2016'!T15 -> 1.754415903 | D17: ='2017'!BE15 -> 31.34512532 | E17: ='2018'!BE15 -> 0 | F17: ='2019'!BE15 -> 12035.55889 | G17: ='2020'!Y15 -> 3137.688075 | H17: 12165.0772
A18: POP | B18: IOANA | C18: ='2016'!T16 -> 585.9749118 | D18: ='2017'!BE16 -> 20446.41748 | E18: ='2018'!BE16 -> 25845.78176 | F18: ='2019'!BE16 -> 15142.63134 | G18: ='2020'!Y16 -> 3511.931962 | H18: 52426.18995
A19: RUSU | B19: IOANA | C19: ='2016'!T17 -> 0 | D19: ='2017'!BE17 -> 6222.435466 | E19: ='2018'!BE17 -> 24684.63713 | F19: ='2019'!BE17 -> 14684.06767 | G19: ='2020'!Y17 -> 3249.121934 | H19: 39072.20976
A20: SAVAN | B20: GABRIELA | C20: ='2016'!T18 -> 0 | D20: ='2017'!BE18 -> 18488.80533 | E20: ='2018'!BE18 -> 25796.57327 | F20: ='2019'!BE18 -> 15349.27554 | G20: ='2020'!Y18 -> 3436.640857 | H20: 50457.036
A21: SZABO | B21: DANIELA | C21: ='2016'!T19 -> 0 | D21: ='2017'!BE19 -> 14921.75588 | E21: ='2018'!BE19 -> 25769.51071 | F21: ='2019'!BE19 -> 15116.00576 | G21: ='2020'!Y19 -> 3596.395206 | H21: 47522.93405
A22: SABAU | B22: CORINA | C22: ='2016'!T20 -> 465.7974224 | D22: ='2017'!BE20 -> 18536.58676 | E22: ='2018'!BE20 -> 25026.63537 | F22: ='2019'!BE20 -> 14586.49943 | G22: ='2020'!Y20 -> 3167.855912 | H22: 49426.69992
A23: SOCACIU | B23: ADINA | C23: ='2016'!T21 -> 785.9783248 | D23: ='2017'!BE21 -> 27693.34183 | E23: ='2018'!BE21 -> 34090.53518 | F23: ='2019'!BE21 -> 20296.50556 | G23: ='2020'!Y21 -> 4742.873979 | H23: 70087.3879
A24: SONIA | B24: ALINA | C24: ='2016'!T22 -> 10.52649542 | D24: ='2017'!BE22 -> 468.9220989 | E24: ='2018'!BE22 -> 1237.430511 | F24: ='2019'!BE22 -> 5888.699294 | G24: ='2020'!Y22 -> 2989.960957 | H24: 8476.431485
A25: STANCA | B25: LIGIA | C25: ='2016'!T23 -> 10.52649542 | D25: ='2017'!BE23 -> 15508.22937 | E25: ='2018'!BE23 -> 25553.77928 | F25: ='2019'!BE23 -> 15342.07695 | G25: ='2020'!Y23 -> 3530.022514 | H25: 47955.70769
A26: TINTELECAN | B26: ROMINA | C26: ='2016'!T24 -> 0 | D26: ='2017'!BE24 -> 2760.628966 | E26: ='2018'!BE24 -> 5402.433945 | F26: ='2019'!BE24 -> 7794.238399 | G26: ='2020'!Y24 -> 2732.8746 | H26: 14952.14073
A27: ULIESAN | B27: DUMITRU | C27: ='2016'!T25 -> 585.9749118 | D27: ='2017'!BE25 -> 20526.6277 | E27: ='2018'!BE25 -> 25760.19419 | F27: ='2019'!BE25 -> 15199.69486 | G27: ='2020'!Y25 -> 3496.15671 | H27: 52454.9187
A28: VERMESAN | B28: ALEXANDRA | C28: ='2016'!T26 -> 585.9749118 | D28: ='2017'!BE26 -> 20558.83949 | E28: ='2018'!BE26 -> 25792.83087 | F28: ='2019'!BE26 -> 15255.09945 | G28: ='2020'!Y26 -> 3544.605777 | H28: 52589.8804
G29: Total | H29: =SUM(H6:H28) -> 890305.6077
